Workbook

Sheet 沅江
A1: 附件1
A2: 沅江市2023年度巩固拓展脱贫攻坚成果和乡村振兴项目库动态调整拟入库项目申报分类汇总表
A4: 单位（盖章）： 单位：万元、个、人
A6: 序号 | B6: 项目类型 | C6: 项目个数 | D6: 资金规模和筹资方式 | I6: 受益对象 | O6: 备注
D7: 项目预算总投资 | E7: 其中 | I7: 受益村（个） | J7: 受益户数（户） | K7: 受益人口数（人） | L7: 其中
E8: 财政衔接资金 | F8: 除财政衔接资金外的统筹整合资金 | G8: 其他财政资金 | H8: 其他筹措资金 | L8: 受益脱贫村数（个） | M8: 受益脱贫户数及防止返贫监测对象户数（户） | N8: 受益脱贫人口数及防止返贫监测对象人口数（人）
B9: 总 计 | C9: =SUM(C10+C16+C22+C26+C27+C32+C36) -> 98 | D9: =SUM(D10+D16+D22+D26+D27+D32+D36) -> 1522 | E9: 1422 | F9: 100 | G9: 95 | H9: 0 | I9: 104 | J9: 18826 | K9: 59830 | L9: 37 | M9: 2440 | N9: 6229
B10: 一、产业发展 | C10: =SUM(琼湖!C9+胭脂湖!C9+新湾!C9+南嘴!C9+草尾!C9+阳罗洲!C9+四季红!C9+黄茅洲!C9+南大膳!C9+共华!C9+泗湖山!C9+茶盘洲!C9+南洞庭!C9+漉湖!C9+行业部门!C9) -> 35 | D10: =SUM(琼湖!D9+胭脂湖!D9+新湾!D9+南嘴!D9+草尾!D9+阳罗洲!D9+四季红!D9+黄茅洲!D9+南大膳!D9+共华!D9+泗湖山!D9+茶盘洲!D9+南洞庭!D9+漉湖!D9+行业部门!D9) -> 825 | E10: =SUM(琼湖!E9+胭脂湖!E9+新湾!E9+南嘴!E9+草尾!E9+阳罗洲!E9+四季红!E9+黄茅洲!E9+南大膳!E9+共华!E9+泗湖山!E9+茶盘洲!E9+南洞庭!E9+漉湖!E9+行业部门!E9) -> 725 | F10: =SUM(琼湖!F9+胭脂湖!F9+新湾!F9+南嘴!F9+草尾!F9+阳罗洲!F9+四季红!F9+黄茅洲!F9+南大膳!F9+共华!F9+泗湖山!F9+茶盘洲!F9+南洞庭!F9+漉湖!F9+行业部门!F9) -> 100 | G10: =SUM(琼湖!G9+胭脂湖!G9+新湾!G9+南嘴!G9+草尾!G9+阳罗洲!G9+四季红!G9+黄茅洲!G9+南大膳!G9+共华!G9+泗湖山!G9+茶盘洲!G9+南洞庭!G9+漉湖!G9+行业部门!G9) -> 80 | H10: =SUM(琼湖!H9+胭脂湖!H9+新湾!H9+南嘴!H9+草尾!H9+阳罗洲!H9+四季红!H9+黄茅洲!H9+南大膳!H9+共华!H9+泗湖山!H9+茶盘洲!H9+南洞庭!H9+漉湖!H9+行业部门!H9) -> 0 | I10: =SUM(琼湖!I9+胭脂湖!I9+新湾!I9+南嘴!I9+草尾!I9+阳罗洲!I9+四季红!I9+黄茅洲!I9+南大膳!I9+共华!I9+泗湖山!I9+茶盘洲!I9+南洞庭!I9+漉湖!I9+行业部门!I9) -> 42 | J10: =SUM(琼湖!J9+胭脂湖!J9+新湾!J9+南嘴!J9+草尾!J9+阳罗洲!J9+四季红!J9+黄茅洲!J9+南大膳!J9+共华!J9+泗湖山!J9+茶盘洲!J9+南洞庭!J9+漉湖!J9+行业部门!J9) -> 9917 | K10: =SUM(琼湖!K9+胭脂湖!K9+新湾!K9+南嘴!K9+草尾!K9+阳罗洲!K9+四季红!K9+黄茅洲!K9+南大膳!K9+共华!K9+泗湖山!K9+茶盘洲!K9+南洞庭!K9+漉湖!K9+行业部门!K9) -> 29973 | L10: =SUM(琼湖!L9+胭脂湖!L9+新湾!L9+南嘴!L9+草尾!L9+阳罗洲!L9+四季红!L9+黄茅洲!L9+南大膳!L9+共华!L9+泗湖山!L9+茶盘洲!L9+南洞庭!L9+漉湖!L9+行业部门!L9) -> 11 | M10: =SUM(琼湖!M9+胭脂湖!M9+新湾!M9+南嘴!M9+草尾!M9+阳罗洲!M9+四季红!M9+黄茅洲!M9+南大膳!M9+共华!M9+泗湖山!M9+茶盘洲!M9+南洞庭!M9+漉湖!M9+行业部门!M9) -> 1230 | N10: =SUM(琼湖!N9+胭脂湖!N9+新湾!N9+南嘴!N9+草尾!N9+阳罗洲!N9+四季红!N9+黄茅洲!N9+南大膳!N9+共华!N9+泗湖山!N9+茶盘洲!N9+南洞庭!N9+漉湖!N9+行业部门!N9) -> 3270
B11: 1.生产项目 | C11: =SUM(琼湖!C10+胭脂湖!C10+新湾!C10+南嘴!C10+草尾!C10+阳罗洲!C10+四季红!C10+黄茅洲!C10+南大膳!C10+共华!C10+泗湖山!C10+茶盘洲!C10+南洞庭!C10+漉湖!C10) -> 15 | D11: =SUM(琼湖!D10+胭脂湖!D10+新湾!D10+南嘴!D10+草尾!D10+阳罗洲!D10+四季红!D10+黄茅洲!D10+南大膳!D10+共华!D10+泗湖山!D10+茶盘洲!D10+南洞庭!D10+漉湖!D10) -> 282 | E11: =SUM(琼湖!E10+胭脂湖!E10+新湾!E10+南嘴!E10+草尾!E10+阳罗洲!E10+四季红!E10+黄茅洲!E10+南大膳!E10+共华!E10+泗湖山!E10+茶盘洲!E10+南洞庭!E10+漉湖!E10) -> 282 | F11: =SUM(琼湖!F10+胭脂湖!F10+新湾!F10+南嘴!F10+草尾!F10+阳罗洲!F10+四季红!F10+黄茅洲!F10+南大膳!F10+共华!F10+泗湖山!F10+茶盘洲!F10+南洞庭!F10+漉湖!F10) -> 0 | G11: =SUM(琼湖!G10+胭脂湖!G10+新湾!G10+南嘴!G10+草尾!G10+阳罗洲!G10+四季红!G10+黄茅洲!G10+南大膳!G10+共华!G10+泗湖山!G10+茶盘洲!G10+南洞庭!G10+漉湖!G10) -> 0 | H11: =SUM(琼湖!H10+胭脂湖!H10+新湾!H10+南嘴!H10+草尾!H10+阳罗洲!H10+四季红!H10+黄茅洲!H10+南大膳!H10+共华!H10+泗湖山!H10+茶盘洲!H10+南洞庭!H10+漉湖!H10) -> 0 | I11: =SUM(琼湖!I10+胭脂湖!I10+新湾!I10+南嘴!I10+草尾!I10+阳罗洲!I10+四季红!I10+黄茅洲!I10+南大膳!I10+共华!I10+泗湖山!I10+茶盘洲!I10+南洞庭!I10+漉湖!I10) -> 15 | J11: =SUM(琼湖!J10+胭脂湖!J10+新湾!J10+南嘴!J10+草尾!J10+阳罗洲!J10+四季红!J10+黄茅洲!J10+南大膳!J10+共华!J10+泗湖山!J10+茶盘洲!J10+南洞庭!J10+漉湖!J10) -> 5570 | K11: =SUM(琼湖!K10+胭脂湖!K10+新湾!K10+南嘴!K10+草尾!K10+阳罗洲!K10+四季红!K10+黄茅洲!K10+南大膳!K10+共华!K10+泗湖山!K10+茶盘洲!K10+南洞庭!K10+漉湖!K10) -> 17640 | L11: =SUM(琼湖!L10+胭脂湖!L10+新湾!L10+南嘴!L10+草尾!L10+阳罗洲!L10+四季红!L10+黄茅洲!L10+南大膳!L10+共华!L10+泗湖山!L10+茶盘洲!L10+南洞庭!L10+漉湖!L10) -> 5 | M11: =SUM(琼湖!M10+胭脂湖!M10+新湾!M10+南嘴!M10+草尾!M10+阳罗洲!M10+四季红!M10+黄茅洲!M10+南大膳!M10+共华!M10+泗湖山!M10+茶盘洲!M10+南洞庭!M10+漉湖!M10) -> 788 | N11: =SUM(琼湖!N10+胭脂湖!N10+新湾!N10+南嘴!N10+草尾!N10+阳罗洲!N10+四季红!N10+黄茅洲!N10+南大膳!N10+共华!N10+泗湖山!N10+茶盘洲!N10+南洞庭!N10+漉湖!N10) -> 2121
B12: 2.加工流通项目 | C12: =SUM(琼湖!C11+胭脂湖!C11+新湾!C11+南嘴!C11+草尾!C11+阳罗洲!C11+四季红!C11+黄茅洲!C11+南大膳!C11+共华!C11+泗湖山!C11+茶盘洲!C11+南洞庭!C11+漉湖!C11) -> 1 | D12: =SUM(琼湖!D11+胭脂湖!D11+新湾!D11+南嘴!D11+草尾!D11+阳罗洲!D11+四季红!D11+黄茅洲!D11+南大膳!D11+共华!D11+泗湖山!D11+茶盘洲!D11+南洞庭!D11+漉湖!D11) -> 150 | E12: =SUM(琼湖!E11+胭脂湖!E11+新湾!E11+南嘴!E11+草尾!E11+阳罗洲!E11+四季红!E11+黄茅洲!E11+南大膳!E11+共华!E11+泗湖山!E11+茶盘洲!E11+南洞庭!E11+漉湖!E11) -> 50 | F12: =SUM(琼湖!F11+胭脂湖!F11+新湾!F11+南嘴!F11+草尾!F11+阳罗洲!F11+四季红!F11+黄茅洲!F11+南大膳!F11+共华!F11+泗湖山!F11+茶盘洲!F11+南洞庭!F11+漉湖!F11) -> 100 | G12: =SUM(琼湖!G11+胭脂湖!G11+新湾!G11+南嘴!G11+草尾!G11+阳罗洲!G11+四季红!G11+黄茅洲!G11+南大膳!G11+共华!G11+泗湖山!G11+茶盘洲!G11+南洞庭!G11+漉湖!G11) -> 0 | H12: =SUM(琼湖!H11+胭脂湖!H11+新湾!H11+南嘴!H11+草尾!H11+阳罗洲!H11+四季红!H11+黄茅洲!H11+南大膳!H11+共华!H11+泗湖山!H11+茶盘洲!H11+南洞庭!H11+漉湖!H11) -> 0 | I12: =SUM(琼湖!I11+胭脂湖!I11+新湾!I11+南嘴!I11+草尾!I11+阳罗洲!I11+四季红!I11+黄茅洲!I11+南大膳!I11+共华!I11+泗湖山!I11+茶盘洲!I11+南洞庭!I11+漉湖!I11) -> 1 | J12: =SUM(琼湖!J11+胭脂湖!J11+新湾!J11+南嘴!J11+草尾!J11+阳罗洲!J11+四季红!J11+黄茅洲!J11+南大膳!J11+共华!J11+泗湖山!J11+茶盘洲!J11+南洞庭!J11+漉湖!J11) -> 136 | K12: =SUM(琼湖!K11+胭脂湖!K11+新湾!K11+南嘴!K11+草尾!K11+阳罗洲!K11+四季红!K11+黄茅洲!K11+南大膳!K11+共华!K11+泗湖山!K11+茶盘洲!K11+南洞庭!K11+漉湖!K11) -> 302 | L12: =SUM(琼湖!L11+胭脂湖!L11+新湾!L11+南嘴!L11+草尾!L11+阳罗洲!L11+四季红!L11+黄茅洲!L11+南大膳!L11+共华!L11+泗湖山!L11+茶盘洲!L11+南洞庭!L11+漉湖!L11) -> 1 | M12: =SUM(琼湖!M11+胭脂湖!M11+新湾!M11+南嘴!M11+草尾!M11+阳罗洲!M11+四季红!M11+黄茅洲!M11+南大膳!M11+共华!M11+泗湖山!M11+茶盘洲!M11+南洞庭!M11+漉湖!M11) -> 126 | N12: =SUM(琼湖!N11+胭脂湖!N11+新湾!N11+南嘴!N11+草尾!N11+阳罗洲!N11+四季红!N11+黄茅洲!N11+南大膳!N11+共华!N11+泗湖山!N11+茶盘洲!N11+南洞庭!N11+漉湖!N11) -> 271
B13: 3.配套设施项目 | C13: =SUM(琼湖!C12+胭脂湖!C12+新湾!C12+南嘴!C12+草尾!C12+阳罗洲!C12+四季红!C12+黄茅洲!C12+南大膳!C12+共华!C12+泗湖山!C12+茶盘洲!C12+南洞庭!C12+漉湖!C12) -> 19 | D13: =SUM(琼湖!D12+胭脂湖!D12+新湾!D12+南嘴!D12+草尾!D12+阳罗洲!D12+四季红!D12+黄茅洲!D12+南大膳!D12+共华!D12+泗湖山!D12+茶盘洲!D12+南洞庭!D12+漉湖!D12) -> 393 | E13: =SUM(琼湖!E12+胭脂湖!E12+新湾!E12+南嘴!E12+草尾!E12+阳罗洲!E12+四季红!E12+黄茅洲!E12+南大膳!E12+共华!E12+泗湖山!E12+茶盘洲!E12+南洞庭!E12+漉湖!E12) -> 393 | F13: =SUM(琼湖!F12+胭脂湖!F12+新湾!F12+南嘴!F12+草尾!F12+阳罗洲!F12+四季红!F12+黄茅洲!F12+南大膳!F12+共华!F12+泗湖山!F12+茶盘洲!F12+南洞庭!F12+漉湖!F12) -> 0 | G13: =SUM(琼湖!G12+胭脂湖!G12+新湾!G12+南嘴!G12+草尾!G12+阳罗洲!G12+四季红!G12+黄茅洲!G12+南大膳!G12+共华!G12+泗湖山!G12+茶盘洲!G12+南洞庭!G12+漉湖!G12) -> 80 | H13: =SUM(琼湖!H12+胭脂湖!H12+新湾!H12+南嘴!H12+草尾!H12+阳罗洲!H12+四季红!H12+黄茅洲!H12+南大膳!H12+共华!H12+泗湖山!H12+茶盘洲!H12+南洞庭!H12+漉湖!H12) -> 0 | I13: =SUM(琼湖!I12+胭脂湖!I12+新湾!I12+南嘴!I12+草尾!I12+阳罗洲!I12+四季红!I12+黄茅洲!I12+南大膳!I12+共华!I12+泗湖山!I12+茶盘洲!I12+南洞庭!I12+漉湖!I12) -> 26 | J13: =SUM(琼湖!J12+胭脂湖!J12+新湾!J12+南嘴!J12+草尾!J12+阳罗洲!J12+四季红!J12+黄茅洲!J12+南大膳!J12+共华!J12+泗湖山!J12+茶盘洲!J12+南洞庭!J12+漉湖!J12) -> 4211 | K13: =SUM(琼湖!K12+胭脂湖!K12+新湾!K12+南嘴!K12+草尾!K12+阳罗洲!K12+四季红!K12+黄茅洲!K12+南大膳!K12+共华!K12+泗湖山!K12+茶盘洲!K12+南洞庭!K12+漉湖!K12) -> 12031 | L13: =SUM(琼湖!L12+胭脂湖!L12+新湾!L12+南嘴!L12+草尾!L12+阳罗洲!L12+四季红!L12+黄茅洲!L12+南大膳!L12+共华!L12+泗湖山!L12+茶盘洲!L12+南洞庭!L12+漉湖!L12) -> 5 | M13: =SUM(琼湖!M12+胭脂湖!M12+新湾!M12+南嘴!M12+草尾!M12+阳罗洲!M12+四季红!M12+黄茅洲!M12+南大膳!M12+共华!M12+泗湖山!M12+茶盘洲!M12+南洞庭!M12+漉湖!M12) -> 316 | N13: =SUM(琼湖!N12+胭脂湖!N12+新湾!N12+南嘴!N12+草尾!N12+阳罗洲!N12+四季红!N12+黄茅洲!N12+南大膳!N12+共华!N12+泗湖山!N12+茶盘洲!N12+南洞庭!N12+漉湖!N12) -> 878
B14: 4.产业服务支撑项目 | C14: =SUM(琼湖!C13+胭脂湖!C13+新湾!C13+南嘴!C13+草尾!C13+阳罗洲!C13+四季红!C13+黄茅洲!C13+南大膳!C13+共华!C13+泗湖山!C13+茶盘洲!C13+南洞庭!C13+漉湖!C13) -> 0 | D14: =SUM(琼湖!D13+胭脂湖!D13+新湾!D13+南嘴!D13+草尾!D13+阳罗洲!D13+四季红!D13+黄茅洲!D13+南大膳!D13+共华!D13+泗湖山!D13+茶盘洲!D13+南洞庭!D13+漉湖!D13) -> 0 | E14: =SUM(琼湖!E13+胭脂湖!E13+新湾!E13+南嘴!E13+草尾!E13+阳罗洲!E13+四季红!E13+黄茅洲!E13+南大膳!E13+共华!E13+泗湖山!E13+茶盘洲!E13+南洞庭!E13+漉湖!E13) -> 0 | F14: =SUM(琼湖!F13+胭脂湖!F13+新湾!F13+南嘴!F13+草尾!F13+阳罗洲!F13+四季红!F13+黄茅洲!F13+南大膳!F13+共华!F13+泗湖山!F13+茶盘洲!F13+南洞庭!F13+漉湖!F13) -> 0 | G14: =SUM(琼湖!G13+胭脂湖!G13+新湾!G13+南嘴!G13+草尾!G13+阳罗洲!G13+四季红!G13+黄茅洲!G13+南大膳!G13+共华!G13+泗湖山!G13+茶盘洲!G13+南洞庭!G13+漉湖!G13) -> 0 | H14: =SUM(琼湖!H13+胭脂湖!H13+新湾!H13+南嘴!H13+草尾!H13+阳罗洲!H13+四季红!H13+黄茅洲!H13+南大膳!H13+共华!H13+泗湖山!H13+茶盘洲!H13+南洞庭!H13+漉湖!H13) -> 0 | I14: =SUM(琼湖!I13+胭脂湖!I13+新湾!I13+南嘴!I13+草尾!I13+阳罗洲!I13+四季红!I13+黄茅洲!I13+南大膳!I13+共华!I13+泗湖山!I13+茶盘洲!I13+南洞庭!I13+漉湖!I13) -> 0 | J14: =SUM(琼湖!J13+胭脂湖!J13+新湾!J13+南嘴!J13+草尾!J13+阳罗洲!J13+四季红!J13+黄茅洲!J13+南大膳!J13+共华!J13+泗湖山!J13+茶盘洲!J13+南洞庭!J13+漉湖!J13) -> 0 | K14: =SUM(琼湖!K13+胭脂湖!K13+新湾!K13+南嘴!K13+草尾!K13+阳罗洲!K13+四季红!K13+黄茅洲!K13+南大膳!K13+共华!K13+泗湖山!K13+茶盘洲!K13+南洞庭!K13+漉湖!K13) -> 0 | L14: =SUM(琼湖!L13+胭脂湖!L13+新湾!L13+南嘴!L13+草尾!L13+阳罗洲!L13+四季红!L13+黄茅洲!L13+南大膳!L13+共华!L13+泗湖山!L13+茶盘洲!L13+南洞庭!L13+漉湖!L13) -> 0 | M14: =SUM(琼湖!M13+胭脂湖!M13+新湾!M13+南嘴!M13+草尾!M13+阳罗洲!M13+四季红!M13+黄茅洲!M13+南大膳!M13+共华!M13+泗湖山!M13+茶盘洲!M13+南洞庭!M13+漉湖!M13) -> 0 | N14: =SUM(琼湖!N13+胭脂湖!N13+新湾!N13+南嘴!N13+草尾!N13+阳罗洲!N13+四季红!N13+黄茅洲!N13+南大膳!N13+共华!N13+泗湖山!N13+茶盘洲!N13+南洞庭!N13+漉湖!N13) -> 0
B15: 5.金融保险配套项目 | C15: =SUM(琼湖!C14+胭脂湖!C14+新湾!C14+南嘴!C14+草尾!C14+阳罗洲!C14+四季红!C14+黄茅洲!C14+南大膳!C14+共华!C14+泗湖山!C14+茶盘洲!C14+南洞庭!C14+漉湖!C14) -> 0 | D15: =SUM(琼湖!D14+胭脂湖!D14+新湾!D14+南嘴!D14+草尾!D14+阳罗洲!D14+四季红!D14+黄茅洲!D14+南大膳!D14+共华!D14+泗湖山!D14+茶盘洲!D14+南洞庭!D14+漉湖!D14) -> 0 | E15: =SUM(琼湖!E14+胭脂湖!E14+新湾!E14+南嘴!E14+草尾!E14+阳罗洲!E14+四季红!E14+黄茅洲!E14+南大膳!E14+共华!E14+泗湖山!E14+茶盘洲!E14+南洞庭!E14+漉湖!E14) -> 0 | F15: =SUM(琼湖!F14+胭脂湖!F14+新湾!F14+南嘴!F14+草尾!F14+阳罗洲!F14+四季红!F14+黄茅洲!F14+南大膳!F14+共华!F14+泗湖山!F14+茶盘洲!F14+南洞庭!F14+漉湖!F14) -> 0 | G15: =SUM(琼湖!G14+胭脂湖!G14+新湾!G14+南嘴!G14+草尾!G14+阳罗洲!G14+四季红!G14+黄茅洲!G14+南大膳!G14+共华!G14+泗湖山!G14+茶盘洲!G14+南洞庭!G14+漉湖!G14) -> 0 | H15: =SUM(琼湖!H14+胭脂湖!H14+新湾!H14+南嘴!H14+草尾!H14+阳罗洲!H14+四季红!H14+黄茅洲!H14+南大膳!H14+共华!H14+泗湖山!H14+茶盘洲!H14+南洞庭!H14+漉湖!H14) -> 0 | I15: =SUM(琼湖!I14+胭脂湖!I14+新湾!I14+南嘴!I14+草尾!I14+阳罗洲!I14+四季红!I14+黄茅洲!I14+南大膳!I14+共华!I14+泗湖山!I14+茶盘洲!I14+南洞庭!I14+漉湖!I14) -> 0 | J15: =SUM(琼湖!J14+胭脂湖!J14+新湾!J14+南嘴!J14+草尾!J14+阳罗洲!J14+四季红!J14+黄茅洲!J14+南大膳!J14+共华!J14+泗湖山!J14+茶盘洲!J14+南洞庭!J14+漉湖!J14) -> 0 | K15: =SUM(琼湖!K14+胭脂湖!K14+新湾!K14+南嘴!K14+草尾!K14+阳罗洲!K14+四季红!K14+黄茅洲!K14+南大膳!K14+共华!K14+泗湖山!K14+茶盘洲!K14+南洞庭!K14+漉湖!K14) -> 0 | L15: =SUM(琼湖!L14+胭脂湖!L14+新湾!L14+南嘴!L14+草尾!L14+阳罗洲!L14+四季红!L14+黄茅洲!L14+南大膳!L14+共华!L14+泗湖山!L14+茶盘洲!L14+南洞庭!L14+漉湖!L14) -> 0 | M15: =SUM(琼湖!M14+胭脂湖!M14+新湾!M14+南嘴!M14+草尾!M14+阳罗洲!M14+四季红!M14+黄茅洲!M14+南大膳!M14+共华!M14+泗湖山!M14+茶盘洲!M14+南洞庭!M14+漉湖!M14) -> 0 | N15: =SUM(琼湖!N14+胭脂湖!N14+新湾!N14+南嘴!N14+草尾!N14+阳罗洲!N14+四季红!N14+黄茅洲!N14+南大膳!N14+共华!N14+泗湖山!N14+茶盘洲!N14+南洞庭!N14+漉湖!N14) -> 0
B16: 二、就业项目 | C16: =SUM(琼湖!C15+胭脂湖!C15+新湾!C15+南嘴!C15+草尾!C15+阳罗洲!C15+四季红!C15+黄茅洲!C15+南大膳!C15+共华!C15+泗湖山!C15+茶盘洲!C15+南洞庭!C15+漉湖!C15+行业部门!C15) -> 0 | D16: =SUM(琼湖!D15+胭脂湖!D15+新湾!D15+南嘴!D15+草尾!D15+阳罗洲!D15+四季红!D15+黄茅洲!D15+南大膳!D15+共华!D15+泗湖山!D15+茶盘洲!D15+南洞庭!D15+漉湖!D15+行业部门!D15) -> 0 | E16: =SUM(琼湖!E15+胭脂湖!E15+新湾!E15+南嘴!E15+草尾!E15+阳罗洲!E15+四季红!E15+黄茅洲!E15+南大膳!E15+共华!E15+泗湖山!E15+茶盘洲!E15+南洞庭!E15+漉湖!E15+行业部门!E15) -> 0 | F16: =SUM(琼湖!F15+胭脂湖!F15+新湾!F15+南嘴!F15+草尾!F15+阳罗洲!F15+四季红!F15+黄茅洲!F15+南大膳!F15+共华!F15+泗湖山!F15+茶盘洲!F15+南洞庭!F15+漉湖!F15+行业部门!F15) -> 0 | G16: =SUM(琼湖!G15+胭脂湖!G15+新湾!G15+南嘴!G15+草尾!G15+阳罗洲!G15+四季红!G15+黄茅洲!G15+南大膳!G15+共华!G15+泗湖山!G15+茶盘洲!G15+南洞庭!G15+漉湖!G15+行业部门!G15) -> 0 | H16: =SUM(琼湖!H15+胭脂湖!H15+新湾!H15+南嘴!H15+草尾!H15+阳罗洲!H15+四季红!H15+黄茅洲!H15+南大膳!H15+共华!H15+泗湖山!H15+茶盘洲!H15+南洞庭!H15+漉湖!H15+行业部门!H15) -> 0 | I16: =SUM(琼湖!I15+胭脂湖!I15+新湾!I15+南嘴!I15+草尾!I15+阳罗洲!I15+四季红!I15+黄茅洲!I15+南大膳!I15+共华!I15+泗湖山!I15+茶盘洲!I15+南洞庭!I15+漉湖!I15+行业部门!I15) -> 0 | J16: =SUM(琼湖!J15+胭脂湖!J15+新湾!J15+南嘴!J15+草尾!J15+阳罗洲!J15+四季红!J15+黄茅洲!J15+南大膳!J15+共华!J15+泗湖山!J15+茶盘洲!J15+南洞庭!J15+漉湖!J15+行业部门!J15) -> 0 | K16: =SUM(琼湖!K15+胭脂湖!K15+新湾!K15+南嘴!K15+草尾!K15+阳罗洲!K15+四季红!K15+黄茅洲!K15+南大膳!K15+共华!K15+泗湖山!K15+茶盘洲!K15+南洞庭!K15+漉湖!K15+行业部门!K15) -> 0 | L16: =SUM(琼湖!L15+胭脂湖!L15+新湾!L15+南嘴!L15+草尾!L15+阳罗洲!L15+四季红!L15+黄茅洲!L15+南大膳!L15+共华!L15+泗湖山!L15+茶盘洲!L15+南洞庭!L15+漉湖!L15+行业部门!L15) -> 0 | M16: =SUM(琼湖!M15+胭脂湖!M15+新湾!M15+南嘴!M15+草尾!M15+阳罗洲!M15+四季红!M15+黄茅洲!M15+南大膳!M15+共华!M15+泗湖山!M15+茶盘洲!M15+南洞庭!M15+漉湖!M15+行业部门!M15) -> 0 | N16: =SUM(琼湖!N15+胭脂湖!N15+新湾!N15+南嘴!N15+草尾!N15+阳罗洲!N15+四季红!N15+黄茅洲!N15+南大膳!N15+共华!N15+泗湖山!N15+茶盘洲!N15+南洞庭!N15+漉湖!N15+行业部门!N15) -> 0
B17: 1.务工补助 | C17: =SUM(琼湖!C16+胭脂湖!C16+新湾!C16+南嘴!C16+草尾!C16+阳罗洲!C16+四季红!C16+黄茅洲!C16+南大膳!C16+共华!C16+泗湖山!C16+茶盘洲!C16+南洞庭!C16+漉湖!C16) -> 0 | D17: =SUM(琼湖!D16+胭脂湖!D16+新湾!D16+南嘴!D16+草尾!D16+阳罗洲!D16+四季红!D16+黄茅洲!D16+南大膳!D16+共华!D16+泗湖山!D16+茶盘洲!D16+南洞庭!D16+漉湖!D16) -> 0 | E17: =SUM(琼湖!E16+胭脂湖!E16+新湾!E16+南嘴!E16+草尾!E16+阳罗洲!E16+四季红!E16+黄茅洲!E16+南大膳!E16+共华!E16+泗湖山!E16+茶盘洲!E16+南洞庭!E16+漉湖!E16) -> 0 | F17: =SUM(琼湖!F16+胭脂湖!F16+新湾!F16+南嘴!F16+草尾!F16+阳罗洲!F16+四季红!F16+黄茅洲!F16+南大膳!F16+共华!F16+泗湖山!F16+茶盘洲!F16+南洞庭!F16+漉湖!F16) -> 0 | G17: =SUM(琼湖!G16+胭脂湖!G16+新湾!G16+南嘴!G16+草尾!G16+阳罗洲!G16+四季红!G16+黄茅洲!G16+南大膳!G16+共华!G16+泗湖山!G16+茶盘洲!G16+南洞庭!G16+漉湖!G16) -> 0 | H17: =SUM(琼湖!H16+胭脂湖!H16+新湾!H16+南嘴!H16+草尾!H16+阳罗洲!H16+四季红!H16+黄茅洲!H16+南大膳!H16+共华!H16+泗湖山!H16+茶盘洲!H16+南洞庭!H16+漉湖!H16) -> 0 | I17: =SUM(琼湖!I16+胭脂湖!I16+新湾!I16+南嘴!I16+草尾!I16+阳罗洲!I16+四季红!I16+黄茅洲!I16+南大膳!I16+共华!I16+泗湖山!I16+茶盘洲!I16+南洞庭!I16+漉湖!I16) -> 0 | J17: =SUM(琼湖!J16+胭脂湖!J16+新湾!J16+南嘴!J16+草尾!J16+阳罗洲!J16+四季红!J16+黄茅洲!J16+南大膳!J16+共华!J16+泗湖山!J16+茶盘洲!J16+南洞庭!J16+漉湖!J16) -> 0 | K17: =SUM(琼湖!K16+胭脂湖!K16+新湾!K16+南嘴!K16+草尾!K16+阳罗洲!K16+四季红!K16+黄茅洲!K16+南大膳!K16+共华!K16+泗湖山!K16+茶盘洲!K16+南洞庭!K16+漉湖!K16) -> 0 | L17: =SUM(琼湖!L16+胭脂湖!L16+新湾!L16+南嘴!L16+草尾!L16+阳罗洲!L16+四季红!L16+黄茅洲!L16+南大膳!L16+共华!L16+泗湖山!L16+茶盘洲!L16+南洞庭!L16+漉湖!L16) -> 0 | M17: =SUM(琼湖!M16+胭脂湖!M16+新湾!M16+南嘴!M16+草尾!M16+阳罗洲!M16+四季红!M16+黄茅洲!M16+南大膳!M16+共华!M16+泗湖山!M16+茶盘洲!M16+南洞庭!M16+漉湖!M16) -> 0 | N17: =SUM(琼湖!N16+胭脂湖!N16+新湾!N16+南嘴!N16+草尾!N16+阳罗洲!N16+四季红!N16+黄茅洲!N16+南大膳!N16+共华!N16+泗湖山!N16+茶盘洲!N16+南洞庭!N16+漉湖!N16) -> 0
B18: 2.就业培训 | C18: =SUM(琼湖!C17+胭脂湖!C17+新湾!C17+南嘴!C17+草尾!C17+阳罗洲!C17+四季红!C17+黄茅洲!C17+南大膳!C17+共华!C17+泗湖山!C17+茶盘洲!C17+南洞庭!C17+漉湖!C17) -> 0 | D18: =SUM(琼湖!D17+胭脂湖!D17+新湾!D17+南嘴!D17+草尾!D17+阳罗洲!D17+四季红!D17+黄茅洲!D17+南大膳!D17+共华!D17+泗湖山!D17+茶盘洲!D17+南洞庭!D17+漉湖!D17) -> 0 | E18: =SUM(琼湖!E17+胭脂湖!E17+新湾!E17+南嘴!E17+草尾!E17+阳罗洲!E17+四季红!E17+黄茅洲!E17+南大膳!E17+共华!E17+泗湖山!E17+茶盘洲!E17+南洞庭!E17+漉湖!E17) -> 0 | F18: =SUM(琼湖!F17+胭脂湖!F17+新湾!F17+南嘴!F17+草尾!F17+阳罗洲!F17+四季红!F17+黄茅洲!F17+南大膳!F17+共华!F17+泗湖山!F17+茶盘洲!F17+南洞庭!F17+漉湖!F17) -> 0 | G18: =SUM(琼湖!G17+胭脂湖!G17+新湾!G17+南嘴!G17+草尾!G17+阳罗洲!G17+四季红!G17+黄茅洲!G17+南大膳!G17+共华!G17+泗湖山!G17+茶盘洲!G17+南洞庭!G17+漉湖!G17) -> 0 | H18: =SUM(琼湖!H17+胭脂湖!H17+新湾!H17+南嘴!H17+草尾!H17+阳罗洲!H17+四季红!H17+黄茅洲!H17+南大膳!H17+共华!H17+泗湖山!H17+茶盘洲!H17+南洞庭!H17+漉湖!H17) -> 0 | I18: =SUM(琼湖!I17+胭脂湖!I17+新湾!I17+南嘴!I17+草尾!I17+阳罗洲!I17+四季红!I17+黄茅洲!I17+南大膳!I17+共华!I17+泗湖山!I17+茶盘洲!I17+南洞庭!I17+漉湖!I17) -> 0 | J18: =SUM(琼湖!J17+胭脂湖!J17+新湾!J17+南嘴!J17+草尾!J17+阳罗洲!J17+四季红!J17+黄茅洲!J17+南大膳!J17+共华!J17+泗湖山!J17+茶盘洲!J17+南洞庭!J17+漉湖!J17) -> 0 | K18: =SUM(琼湖!K17+胭脂湖!K17+新湾!K17+南嘴!K17+草尾!K17+阳罗洲!K17+四季红!K17+黄茅洲!K17+南大膳!K17+共华!K17+泗湖山!K17+茶盘洲!K17+南洞庭!K17+漉湖!K17) -> 0 | L18: =SUM(琼湖!L17+胭脂湖!L17+新湾!L17+南嘴!L17+草尾!L17+阳罗洲!L17+四季红!L17+黄茅洲!L17+南大膳!L17+共华!L17+泗湖山!L17+茶盘洲!L17+南洞庭!L17+漉湖!L17) -> 0 | M18: =SUM(琼湖!M17+胭脂湖!M17+新湾!M17+南嘴!M17+草尾!M17+阳罗洲!M17+四季红!M17+黄茅洲!M17+南大膳!M17+共华!M17+泗湖山!M17+茶盘洲!M17+南洞庭!M17+漉湖!M17) -> 0 | N18: =SUM(琼湖!N17+胭脂湖!N17+新湾!N17+南嘴!N17+草尾!N17+阳罗洲!N17+四季红!N17+黄茅洲!N17+南大膳!N17+共华!N17+泗湖山!N17+茶盘洲!N17+南洞庭!N17+漉湖!N17) -> 0
B19: 3.创业 | C19: =SUM(琼湖!C18+胭脂湖!C18+新湾!C18+南嘴!C18+草尾!C18+阳罗洲!C18+四季红!C18+黄茅洲!C18+南大膳!C18+共华!C18+泗湖山!C18+茶盘洲!C18+南洞庭!C18+漉湖!C18) -> 0 | D19: =SUM(琼湖!D18+胭脂湖!D18+新湾!D18+南嘴!D18+草尾!D18+阳罗洲!D18+四季红!D18+黄茅洲!D18+南大膳!D18+共华!D18+泗湖山!D18+茶盘洲!D18+南洞庭!D18+漉湖!D18) -> 0 | E19: =SUM(琼湖!E18+胭脂湖!E18+新湾!E18+南嘴!E18+草尾!E18+阳罗洲!E18+四季红!E18+黄茅洲!E18+南大膳!E18+共华!E18+泗湖山!E18+茶盘洲!E18+南洞庭!E18+漉湖!E18) -> 0 | F19: =SUM(琼湖!F18+胭脂湖!F18+新湾!F18+南嘴!F18+草尾!F18+阳罗洲!F18+四季红!F18+黄茅洲!F18+南大膳!F18+共华!F18+泗湖山!F18+茶盘洲!F18+南洞庭!F18+漉湖!F18) -> 0 | G19: =SUM(琼湖!G18+胭脂湖!G18+新湾!G18+南嘴!G18+草尾!G18+阳罗洲!G18+四季红!G18+黄茅洲!G18+南大膳!G18+共华!G18+泗湖山!G18+茶盘洲!G18+南洞庭!G18+漉湖!G18) -> 0 | H19: =SUM(琼湖!H18+胭脂湖!H18+新湾!H18+南嘴!H18+草尾!H18+阳罗洲!H18+四季红!H18+黄茅洲!H18+南大膳!H18+共华!H18+泗湖山!H18+茶盘洲!H18+南洞庭!H18+漉湖!H18) -> 0 | I19: =SUM(琼湖!I18+胭脂湖!I18+新湾!I18+南嘴!I18+草尾!I18+阳罗洲!I18+四季红!I18+黄茅洲!I18+南大膳!I18+共华!I18+泗湖山!I18+茶盘洲!I18+南洞庭!I18+漉湖!I18) -> 0 | J19: =SUM(琼湖!J18+胭脂湖!J18+新湾!J18+南嘴!J18+草尾!J18+阳罗洲!J18+四季红!J18+黄茅洲!J18+南大膳!J18+共华!J18+泗湖山!J18+茶盘洲!J18+南洞庭!J18+漉湖!J18) -> 0 | K19: =SUM(琼湖!K18+胭脂湖!K18+新湾!K18+南嘴!K18+草尾!K18+阳罗洲!K18+四季红!K18+黄茅洲!K18+南大膳!K18+共华!K18+泗湖山!K18+茶盘洲!K18+南洞庭!K18+漉湖!K18) -> 0 | L19: =SUM(琼湖!L18+胭脂湖!L18+新湾!L18+南嘴!L18+草尾!L18+阳罗洲!L18+四季红!L18+黄茅洲!L18+南大膳!L18+共华!L18+泗湖山!L18+茶盘洲!L18+南洞庭!L18+漉湖!L18) -> 0 | M19: =SUM(琼湖!M18+胭脂湖!M18+新湾!M18+南嘴!M18+草尾!M18+阳罗洲!M18+四季红!M18+黄茅洲!M18+南大膳!M18+共华!M18+泗湖山!M18+茶盘洲!M18+南洞庭!M18+漉湖!M18) -> 0 | N19: =SUM(琼湖!N18+胭脂湖!N18+新湾!N18+南嘴!N18+草尾!N18+阳罗洲!N18+四季红!N18+黄茅洲!N18+南大膳!N18+共华!N18+泗湖山!N18+茶盘洲!N18+南洞庭!N18+漉湖!N18) -> 0
B20: 4.乡村工匠 | C20: =SUM(琼湖!C19+胭脂湖!C19+新湾!C19+南嘴!C19+草尾!C19+阳罗洲!C19+四季红!C19+黄茅洲!C19+南大膳!C19+共华!C19+泗湖山!C19+茶盘洲!C19+南洞庭!C19+漉湖!C19) -> 0 | D20: =SUM(琼湖!D19+胭脂湖!D19+新湾!D19+南嘴!D19+草尾!D19+阳罗洲!D19+四季红!D19+黄茅洲!D19+南大膳!D19+共华!D19+泗湖山!D19+茶盘洲!D19+南洞庭!D19+漉湖!D19) -> 0 | E20: =SUM(琼湖!E19+胭脂湖!E19+新湾!E19+南嘴!E19+草尾!E19+阳罗洲!E19+四季红!E19+黄茅洲!E19+南大膳!E19+共华!E19+泗湖山!E19+茶盘洲!E19+南洞庭!E19+漉湖!E19) -> 0 | F20: =SUM(琼湖!F19+胭脂湖!F19+新湾!F19+南嘴!F19+草尾!F19+阳罗洲!F19+四季红!F19+黄茅洲!F19+南大膳!F19+共华!F19+泗湖山!F19+茶盘洲!F19+南洞庭!F19+漉湖!F19) -> 0 | G20: =SUM(琼湖!G19+胭脂湖!G19+新湾!G19+南嘴!G19+草尾!G19+阳罗洲!G19+四季红!G19+黄茅洲!G19+南大膳!G19+共华!G19+泗湖山!G19+茶盘洲!G19+南洞庭!G19+漉湖!G19) -> 0 | H20: =SUM(琼湖!H19+胭脂湖!H19+新湾!H19+南嘴!H19+草尾!H19+阳罗洲!H19+四季红!H19+黄茅洲!H19+南大膳!H19+共华!H19+泗湖山!H19+茶盘洲!H19+南洞庭!H19+漉湖!H19) -> 0 | I20: =SUM(琼湖!I19+胭脂湖!I19+新湾!I19+南嘴!I19+草尾!I19+阳罗洲!I19+四季红!I19+黄茅洲!I19+南大膳!I19+共华!I19+泗湖山!I19+茶盘洲!I19+南洞庭!I19+漉湖!I19) -> 0 | J20: =SUM(琼湖!J19+胭脂湖!J19+新湾!J19+南嘴!J19+草尾!J19+阳罗洲!J19+四季红!J19+黄茅洲!J19+南大膳!J19+共华!J19+泗湖山!J19+茶盘洲!J19+南洞庭!J19+漉湖!J19) -> 0 | K20: =SUM(琼湖!K19+胭脂湖!K19+新湾!K19+南嘴!K19+草尾!K19+阳罗洲!K19+四季红!K19+黄茅洲!K19+南大膳!K19+共华!K19+泗湖山!K19+茶盘洲!K19+南洞庭!K19+漉湖!K19) -> 0 | L20: =SUM(琼湖!L19+胭脂湖!L19+新湾!L19+南嘴!L19+草尾!L19+阳罗洲!L19+四季红!L19+黄茅洲!L19+南大膳!L19+共华!L19+泗湖山!L19+茶盘洲!L19+南洞庭!L19+漉湖!L19) -> 0 | M20: =SUM(琼湖!M19+胭脂湖!M19+新湾!M19+南嘴!M19+草尾!M19+阳罗洲!M19+四季红!M19+黄茅洲!M19+南大膳!M19+共华!M19+泗湖山!M19+茶盘洲!M19+南洞庭!M19+漉湖!M19) -> 0 | N20: =SUM(琼湖!N19+胭脂湖!N19+新湾!N19+南嘴!N19+草尾!N19+阳罗洲!N19+四季红!N19+黄茅洲!N19+南大膳!N19+共华!N19+泗湖山!N19+茶盘洲!N19+南洞庭!N19+漉湖!N19) -> 0
B21: 5.公益性岗位 | C21: =SUM(琼湖!C20+胭脂湖!C20+新湾!C20+南嘴!C20+草尾!C20+阳罗洲!C20+四季红!C20+黄茅洲!C20+南大膳!C20+共华!C20+泗湖山!C20+茶盘洲!C20+南洞庭!C20+漉湖!C20) -> 0 | D21: =SUM(琼湖!D20+胭脂湖!D20+新湾!D20+南嘴!D20+草尾!D20+阳罗洲!D20+四季红!D20+黄茅洲!D20+南大膳!D20+共华!D20+泗湖山!D20+茶盘洲!D20+南洞庭!D20+漉湖!D20) -> 0 | E21: =SUM(琼湖!E20+胭脂湖!E20+新湾!E20+南嘴!E20+草尾!E20+阳罗洲!E20+四季红!E20+黄茅洲!E20+南大膳!E20+共华!E20+泗湖山!E20+茶盘洲!E20+南洞庭!E20+漉湖!E20) -> 0 | F21: =SUM(琼湖!F20+胭脂湖!F20+新湾!F20+南嘴!F20+草尾!F20+阳罗洲!F20+四季红!F20+黄茅洲!F20+南大膳!F20+共华!F20+泗湖山!F20+茶盘洲!F20+南洞庭!F20+漉湖!F20) -> 0 | G21: =SUM(琼湖!G20+胭脂湖!G20+新湾!G20+南嘴!G20+草尾!G20+阳罗洲!G20+四季红!G20+黄茅洲!G20+南大膳!G20+共华!G20+泗湖山!G20+茶盘洲!G20+南洞庭!G20+漉湖!G20) -> 0 | H21: =SUM(琼湖!H20+胭脂湖!H20+新湾!H20+南嘴!H20+草尾!H20+阳罗洲!H20+四季红!H20+黄茅洲!H20+南大膳!H20+共华!H20+泗湖山!H20+茶盘洲!H20+南洞庭!H20+漉湖!H20) -> 0 | I21: =SUM(琼湖!I20+胭脂湖!I20+新湾!I20+南嘴!I20+草尾!I20+阳罗洲!I20+四季红!I20+黄茅洲!I20+南大膳!I20+共华!I20+泗湖山!I20+茶盘洲!I20+南洞庭!I20+漉湖!I20) -> 0 | J21: =SUM(琼湖!J20+胭脂湖!J20+新湾!J20+南嘴!J20+草尾!J20+阳罗洲!J20+四季红!J20+黄茅洲!J20+南大膳!J20+共华!J20+泗湖山!J20+茶盘洲!J20+南洞庭!J20+漉湖!J20) -> 0 | K21: =SUM(琼湖!K20+胭脂湖!K20+新湾!K20+南嘴!K20+草尾!K20+阳罗洲!K20+四季红!K20+黄茅洲!K20+南大膳!K20+共华!K20+泗湖山!K20+茶盘洲!K20+南洞庭!K20+漉湖!K20) -> 0 | L21: =SUM(琼湖!L20+胭脂湖!L20+新湾!L20+南嘴!L20+草尾!L20+阳罗洲!L20+四季红!L20+黄茅洲!L20+南大膳!L20+共华!L20+泗湖山!L20+茶盘洲!L20+南洞庭!L20+漉湖!L20) -> 0 | M21: =SUM(琼湖!M20+胭脂湖!M20+新湾!M20+南嘴!M20+草尾!M20+阳罗洲!M20+四季红!M20+黄茅洲!M20+南大膳!M20+共华!M20+泗湖山!M20+茶盘洲!M20+南洞庭!M20+漉湖!M20) -> 0 | N21: =SUM(琼湖!N20+胭脂湖!N20+新湾!N20+南嘴!N20+草尾!N20+阳罗洲!N20+四季红!N20+黄茅洲!N20+南大膳!N20+共华!N20+泗湖山!N20+茶盘洲!N20+南洞庭!N20+漉湖!N20) -> 0
B22: 三、乡村建设行动 | C22: =SUM(琼湖!C21+胭脂湖!C21+新湾!C21+南嘴!C21+草尾!C21+阳罗洲!C21+四季红!C21+黄茅洲!C21+南大膳!C21+共华!C21+泗湖山!C21+茶盘洲!C21+南洞庭!C21+漉湖!C21+行业部门!C21) -> 63 | D22: =SUM(琼湖!D21+胭脂湖!D21+新湾!D21+南嘴!D21+草尾!D21+阳罗洲!D21+四季红!D21+黄茅洲!D21+南大膳!D21+共华!D21+泗湖山!D21+茶盘洲!D21+南洞庭!D21+漉湖!D21+行业部门!D21) -> 697 | E22: =SUM(琼湖!E21+胭脂湖!E21+新湾!E21+南嘴!E21+草尾!E21+阳罗洲!E21+四季红!E21+黄茅洲!E21+南大膳!E21+共华!E21+泗湖山!E21+茶盘洲!E21+南洞庭!E21+漉湖!E21+行业部门!E21) -> 697 | F22: =SUM(琼湖!F21+胭脂湖!F21+新湾!F21+南嘴!F21+草尾!F21+阳罗洲!F21+四季红!F21+黄茅洲!F21+南大膳!F21+共华!F21+泗湖山!F21+茶盘洲!F21+南洞庭!F21+漉湖!F21+行业部门!F21) -> 0 | G22: =SUM(琼湖!G21+胭脂湖!G21+新湾!G21+南嘴!G21+草尾!G21+阳罗洲!G21+四季红!G21+黄茅洲!G21+南大膳!G21+共华!G21+泗湖山!G21+茶盘洲!G21+南洞庭!G21+漉湖!G21+行业部门!G21) -> 15 | H22: =SUM(琼湖!H21+胭脂湖!H21+新湾!H21+南嘴!H21+草尾!H21+阳罗洲!H21+四季红!H21+黄茅洲!H21+南大膳!H21+共华!H21+泗湖山!H21+茶盘洲!H21+南洞庭!H21+漉湖!H21+行业部门!H21) -> 0 | I22: =SUM(琼湖!I21+胭脂湖!I21+新湾!I21+南嘴!I21+草尾!I21+阳罗洲!I21+四季红!I21+黄茅洲!I21+南大膳!I21+共华!I21+泗湖山!I21+茶盘洲!I21+南洞庭!I21+漉湖!I21+行业部门!I21) -> 62 | J22: =SUM(琼湖!J21+胭脂湖!J21+新湾!J21+南嘴!J21+草尾!J21+阳罗洲!J21+四季红!J21+黄茅洲!J21+南大膳!J21+共华!J21+泗湖山!J21+茶盘洲!J21+南洞庭!J21+漉湖!J21+行业部门!J21) -> 8909 | K22: =SUM(琼湖!K21+胭脂湖!K21+新湾!K21+南嘴!K21+草尾!K21+阳罗洲!K21+四季红!K21+黄茅洲!K21+南大膳!K21+共华!K21+泗湖山!K21+茶盘洲!K21+南洞庭!K21+漉湖!K21+行业部门!K21) -> 29857 | L22: =SUM(琼湖!L21+胭脂湖!L21+新湾!L21+南嘴!L21+草尾!L21+阳罗洲!L21+四季红!L21+黄茅洲!L21+南大膳!L21+共华!L21+泗湖山!L21+茶盘洲!L21+南洞庭!L21+漉湖!L21+行业部门!L21) -> 26 | M22: =SUM(琼湖!M21+胭脂湖!M21+新湾!M21+南嘴!M21+草尾!M21+阳罗洲!M21+四季红!M21+黄茅洲!M21+南大膳!M21+共华!M21+泗湖山!M21+茶盘洲!M21+南洞庭!M21+漉湖!M21+行业部门!M21) -> 1210 | N22: =SUM(琼湖!N21+胭脂湖!N21+新湾!N21+南嘴!N21+草尾!N21+阳罗洲!N21+四季红!N21+黄茅洲!N21+南大膳!N21+共华!N21+泗湖山!N21+茶盘洲!N21+南洞庭!N21+漉湖!N21+行业部门!N21) -> 2959
B23: 1.农村基础设施 | C23: =SUM(琼湖!C22+胭脂湖!C22+新湾!C22+南嘴!C22+草尾!C22+阳罗洲!C22+四季红!C22+黄茅洲!C22+南大膳!C22+共华!C22+泗湖山!C22+茶盘洲!C22+南洞庭!C22+漉湖!C22) -> 56 | D23: =SUM(琼湖!D22+胭脂湖!D22+新湾!D22+南嘴!D22+草尾!D22+阳罗洲!D22+四季红!D22+黄茅洲!D22+南大膳!D22+共华!D22+泗湖山!D22+茶盘洲!D22+南洞庭!D22+漉湖!D22) -> 649 | E23: =SUM(琼湖!E22+胭脂湖!E22+新湾!E22+南嘴!E22+草尾!E22+阳罗洲!E22+四季红!E22+黄茅洲!E22+南大膳!E22+共华!E22+泗湖山!E22+茶盘洲!E22+南洞庭!E22+漉湖!E22) -> 649 | F23: =SUM(琼湖!F22+胭脂湖!F22+新湾!F22+南嘴!F22+草尾!F22+阳罗洲!F22+四季红!F22+黄茅洲!F22+南大膳!F22+共华!F22+泗湖山!F22+茶盘洲!F22+南洞庭!F22+漉湖!F22) -> 0 | G23: =SUM(琼湖!G22+胭脂湖!G22+新湾!G22+南嘴!G22+草尾!G22+阳罗洲!G22+四季红!G22+黄茅洲!G22+南大膳!G22+共华!G22+泗湖山!G22+茶盘洲!G22+南洞庭!G22+漉湖!G22) -> 15 | H23: =SUM(琼湖!H22+胭脂湖!H22+新湾!H22+南嘴!H22+草尾!H22+阳罗洲!H22+四季红!H22+黄茅洲!H22+南大膳!H22+共华!H22+泗湖山!H22+茶盘洲!H22+南洞庭!H22+漉湖!H22) -> 0 | I23: =SUM(琼湖!I22+胭脂湖!I22+新湾!I22+南嘴!I22+草尾!I22+阳罗洲!I22+四季红!I22+黄茅洲!I22+南大膳!I22+共华!I22+泗湖山!I22+茶盘洲!I22+南洞庭!I22+漉湖!I22) -> 55 | J23: =SUM(琼湖!J22+胭脂湖!J22+新湾!J22+南嘴!J22+草尾!J22+阳罗洲!J22+四季红!J22+黄茅洲!J22+南大膳!J22+共华!J22+泗湖山!J22+茶盘洲!J22+南洞庭!J22+漉湖!J22) -> 7828 | K23: =SUM(琼湖!K22+胭脂湖!K22+新湾!K22+南嘴!K22+草尾!K22+阳罗洲!K22+四季红!K22+黄茅洲!K22+南大膳!K22+共华!K22+泗湖山!K22+茶盘洲!K22+南洞庭!K22+漉湖!K22) -> 24794 | L23: =SUM(琼湖!L22+胭脂湖!L22+新湾!L22+南嘴!L22+草尾!L22+阳罗洲!L22+四季红!L22+黄茅洲!L22+南大膳!L22+共华!L22+泗湖山!L22+茶盘洲!L22+南洞庭!L22+漉湖!L22) -> 20 | M23: =SUM(琼湖!M22+胭脂湖!M22+新湾!M22+南嘴!M22+草尾!M22+阳罗洲!M22+四季红!M22+黄茅洲!M22+南大膳!M22+共华!M22+泗湖山!M22+茶盘洲!M22+南洞庭!M22+漉湖!M22) -> 1013 | N23: =SUM(琼湖!N22+胭脂湖!N22+新湾!N22+南嘴!N22+草尾!N22+阳罗洲!N22+四季红!N22+黄茅洲!N22+南大膳!N22+共华!N22+泗湖山!N22+茶盘洲!N22+南洞庭!N22+漉湖!N22) -> 2464
B24: 2.人居环境整治 | C24: =SUM(琼湖!C23+胭脂湖!C23+新湾!C23+南嘴!C23+草尾!C23+阳罗洲!C23+四季红!C23+黄茅洲!C23+南大膳!C23+共华!C23+泗湖山!C23+茶盘洲!C23+南洞庭!C23+漉湖!C23) -> 7 | D24: =SUM(琼湖!D23+胭脂湖!D23+新湾!D23+南嘴!D23+草尾!D23+阳罗洲!D23+四季红!D23+黄茅洲!D23+南大膳!D23+共华!D23+泗湖山!D23+茶盘洲!D23+南洞庭!D23+漉湖!D23) -> 48 | E24: =SUM(琼湖!E23+胭脂湖!E23+新湾!E23+南嘴!E23+草尾!E23+阳罗洲!E23+四季红!E23+黄茅洲!E23+南大膳!E23+共华!E23+泗湖山!E23+茶盘洲!E23+南洞庭!E23+漉湖!E23) -> 48 | F24: =SUM(琼湖!F23+胭脂湖!F23+新湾!F23+南嘴!F23+草尾!F23+阳罗洲!F23+四季红!F23+黄茅洲!F23+南大膳!F23+共华!F23+泗湖山!F23+茶盘洲!F23+南洞庭!F23+漉湖!F23) -> 0 | G24: =SUM(琼湖!G23+胭脂湖!G23+新湾!G23+南嘴!G23+草尾!G23+阳罗洲!G23+四季红!G23+黄茅洲!G23+南大膳!G23+共华!G23+泗湖山!G23+茶盘洲!G23+南洞庭!G23+漉湖!G23) -> 0 | H24: =SUM(琼湖!H23+胭脂湖!H23+新湾!H23+南嘴!H23+草尾!H23+阳罗洲!H23+四季红!H23+黄茅洲!H23+南大膳!H23+共华!H23+泗湖山!H23+茶盘洲!H23+南洞庭!H23+漉湖!H23) -> 0 | I24: =SUM(琼湖!I23+胭脂湖!I23+新湾!I23+南嘴!I23+草尾!I23+阳罗洲!I23+四季红!I23+黄茅洲!I23+南大膳!I23+共华!I23+泗湖山!I23+茶盘洲!I23+南洞庭!I23+漉湖!I23) -> 7 | J24: =SUM(琼湖!J23+胭脂湖!J23+新湾!J23+南嘴!J23+草尾!J23+阳罗洲!J23+四季红!J23+黄茅洲!J23+南大膳!J23+共华!J23+泗湖山!J23+茶盘洲!J23+南洞庭!J23+漉湖!J23) -> 1081 | K24: =SUM(琼湖!K23+胭脂湖!K23+新湾!K23+南嘴!K23+草尾!K23+阳罗洲!K23+四季红!K23+黄茅洲!K23+南大膳!K23+共华!K23+泗湖山!K23+茶盘洲!K23+南洞庭!K23+漉湖!K23) -> 5063 | L24: =SUM(琼湖!L23+胭脂湖!L23+新湾!L23+南嘴!L23+草尾!L23+阳罗洲!L23+四季红!L23+黄茅洲!L23+南大膳!L23+共华!L23+泗湖山!L23+茶盘洲!L23+南洞庭!L23+漉湖!L23) -> 6 | M24: =SUM(琼湖!M23+胭脂湖!M23+新湾!M23+南嘴!M23+草尾!M23+阳罗洲!M23+四季红!M23+黄茅洲!M23+南大膳!M23+共华!M23+泗湖山!M23+茶盘洲!M23+南洞庭!M23+漉湖!M23) -> 197 | N24: =SUM(琼湖!N23+胭脂湖!N23+新湾!N23+南嘴!N23+草尾!N23+阳罗洲!N23+四季红!N23+黄茅洲!N23+南大膳!N23+共华!N23+泗湖山!N23+茶盘洲!N23+南洞庭!N23+漉湖!N23) -> 495
B25: 3.农村公共服务 | C25: =SUM(琼湖!C24+胭脂湖!C24+新湾!C24+南嘴!C24+草尾!C24+阳罗洲!C24+四季红!C24+黄茅洲!C24+南大膳!C24+共华!C24+泗湖山!C24+茶盘洲!C24+南洞庭!C24+漉湖!C24) -> 0 | D25: =SUM(琼湖!D24+胭脂湖!D24+新湾!D24+南嘴!D24+草尾!D24+阳罗洲!D24+四季红!D24+黄茅洲!D24+南大膳!D24+共华!D24+泗湖山!D24+茶盘洲!D24+南洞庭!D24+漉湖!D24) -> 0 | E25: =SUM(琼湖!E24+胭脂湖!E24+新湾!E24+南嘴!E24+草尾!E24+阳罗洲!E24+四季红!E24+黄茅洲!E24+南大膳!E24+共华!E24+泗湖山!E24+茶盘洲!E24+南洞庭!E24+漉湖!E24) -> 0 | F25: =SUM(琼湖!F24+胭脂湖!F24+新湾!F24+南嘴!F24+草尾!F24+阳罗洲!F24+四季红!F24+黄茅洲!F24+南大膳!F24+共华!F24+泗湖山!F24+茶盘洲!F24+南洞庭!F24+漉湖!F24) -> 0 | G25: =SUM(琼湖!G24+胭脂湖!G24+新湾!G24+南嘴!G24+草尾!G24+阳罗洲!G24+四季红!G24+黄茅洲!G24+南大膳!G24+共华!G24+泗湖山!G24+茶盘洲!G24+南洞庭!G24+漉湖!G24) -> 0 | H25: =SUM(琼湖!H24+胭脂湖!H24+新湾!H24+南嘴!H24+草尾!H24+阳罗洲!H24+四季红!H24+黄茅洲!H24+南大膳!H24+共华!H24+泗湖山!H24+茶盘洲!H24+南洞庭!H24+漉湖!H24) -> 0 | I25: =SUM(琼湖!I24+胭脂湖!I24+新湾!I24+南嘴!I24+草尾!I24+阳罗洲!I24+四季红!I24+黄茅洲!I24+南大膳!I24+共华!I24+泗湖山!I24+茶盘洲!I24+南洞庭!I24+漉湖!I24) -> 0 | J25: =SUM(琼湖!J24+胭脂湖!J24+新湾!J24+南嘴!J24+草尾!J24+阳罗洲!J24+四季红!J24+黄茅洲!J24+南大膳!J24+共华!J24+泗湖山!J24+茶盘洲!J24+南洞庭!J24+漉湖!J24) -> 0 | K25: =SUM(琼湖!K24+胭脂湖!K24+新湾!K24+南嘴!K24+草尾!K24+阳罗洲!K24+四季红!K24+黄茅洲!K24+南大膳!K24+共华!K24+泗湖山!K24+茶盘洲!K24+南洞庭!K24+漉湖!K24) -> 0 | L25: =SUM(琼湖!L24+胭脂湖!L24+新湾!L24+南嘴!L24+草尾!L24+阳罗洲!L24+四季红!L24+黄茅洲!L24+南大膳!L24+共华!L24+泗湖山!L24+茶盘洲!L24+南洞庭!L24+漉湖!L24) -> 0 | M25: =SUM(琼湖!M24+胭脂湖!M24+新湾!M24+南嘴!M24+草尾!M24+阳罗洲!M24+四季红!M24+黄茅洲!M24+南大膳!M24+共华!M24+泗湖山!M24+茶盘洲!M24+南洞庭!M24+漉湖!M24) -> 0 | N25: =SUM(琼湖!N24+胭脂湖!N24+新湾!N24+南嘴!N24+草尾!N24+阳罗洲!N24+四季红!N24+黄茅洲!N24+南大膳!N24+共华!N24+泗湖山!N24+茶盘洲!N24+南洞庭!N24+漉湖!N24) -> 0
B26: 四、易地搬迁后扶 | C26: =SUM(琼湖!C25+胭脂湖!C25+新湾!C25+南嘴!C25+草尾!C25+阳罗洲!C25+四季红!C25+黄茅洲!C25+南大膳!C25+共华!C25+泗湖山!C25+茶盘洲!C25+南洞庭!C25+漉湖!C25+行业部门!C25) -> 0 | D26: =SUM(琼湖!D25+胭脂湖!D25+新湾!D25+南嘴!D25+草尾!D25+阳罗洲!D25+四季红!D25+黄茅洲!D25+南大膳!D25+共华!D25+泗湖山!D25+茶盘洲!D25+南洞庭!D25+漉湖!D25+行业部门!D25) -> 0 | E26: =SUM(琼湖!E25+胭脂湖!E25+新湾!E25+南嘴!E25+草尾!E25+阳罗洲!E25+四季红!E25+黄茅洲!E25+南大膳!E25+共华!E25+泗湖山!E25+茶盘洲!E25+南洞庭!E25+漉湖!E25+行业部门!E25) -> 0 | F26: =SUM(琼湖!F25+胭脂湖!F25+新湾!F25+南嘴!F25+草尾!F25+阳罗洲!F25+四季红!F25+黄茅洲!F25+南大膳!F25+共华!F25+泗湖山!F25+茶盘洲!F25+南洞庭!F25+漉湖!F25+行业部门!F25) -> 0 | G26: =SUM(琼湖!G25+胭脂湖!G25+新湾!G25+南嘴!G25+草尾!G25+阳罗洲!G25+四季红!G25+黄茅洲!G25+南大膳!G25+共华!G25+泗湖山!G25+茶盘洲!G25+南洞庭!G25+漉湖!G25+行业部门!G25) -> 0 | H26: =SUM(琼湖!H25+胭脂湖!H25+新湾!H25+南嘴!H25+草尾!H25+阳罗洲!H25+四季红!H25+黄茅洲!H25+南大膳!H25+共华!H25+泗湖山!H25+茶盘洲!H25+南洞庭!H25+漉湖!H25+行业部门!H25) -> 0 | I26: =SUM(琼湖!I25+胭脂湖!I25+新湾!I25+南嘴!I25+草尾!I25+阳罗洲!I25+四季红!I25+黄茅洲!I25+南大膳!I25+共华!I25+泗湖山!I25+茶盘洲!I25+南洞庭!I25+漉湖!I25+行业部门!I25) -> 0 | J26: =SUM(琼湖!J25+胭脂湖!J25+新湾!J25+南嘴!J25+草尾!J25+阳罗洲!J25+四季红!J25+黄茅洲!J25+南大膳!J25+共华!J25+泗湖山!J25+茶盘洲!J25+南洞庭!J25+漉湖!J25+行业部门!J25) -> 0 | K26: =SUM(琼湖!K25+胭脂湖!K25+新湾!K25+南嘴!K25+草尾!K25+阳罗洲!K25+四季红!K25+黄茅洲!K25+南大膳!K25+共华!K25+泗湖山!K25+茶盘洲!K25+南洞庭!K25+漉湖!K25+行业部门!K25) -> 0 | L26: =SUM(琼湖!L25+胭脂湖!L25+新湾!L25+南嘴!L25+草尾!L25+阳罗洲!L25+四季红!L25+黄茅洲!L25+南大膳!L25+共华!L25+泗湖山!L25+茶盘洲!L25+南洞庭!L25+漉湖!L25+行业部门!L25) -> 0 | M26: =SUM(琼湖!M25+胭脂湖!M25+新湾!M25+南嘴!M25+草尾!M25+阳罗洲!M25+四季红!M25+黄茅洲!M25+南大膳!M25+共华!M25+泗湖山!M25+茶盘洲!M25+南洞庭!M25+漉湖!M25+行业部门!M25) -> 0 | N26: =SUM(琼湖!N25+胭脂湖!N25+新湾!N25+南嘴!N25+草尾!N25+阳罗洲!N25+四季红!N25+黄茅洲!N25+南大膳!N25+共华!N25+泗湖山!N25+茶盘洲!N25+南洞庭!N25+漉湖!N25+行业部门!N25) -> 0
B27: 五、巩固三保障成果 | C27: =SUM(琼湖!C26+胭脂湖!C26+新湾!C26+南嘴!C26+草尾!C26+阳罗洲!C26+四季红!C26+黄茅洲!C26+南大膳!C26+共华!C26+泗湖山!C26+茶盘洲!C26+南洞庭!C26+漉湖!C26+行业部门!C26) -> 0 | D27: =SUM(琼湖!D26+胭脂湖!D26+新湾!D26+南嘴!D26+草尾!D26+阳罗洲!D26+四季红!D26+黄茅洲!D26+南大膳!D26+共华!D26+泗湖山!D26+茶盘洲!D26+南洞庭!D26+漉湖!D26+行业部门!D26) -> 0 | E27: =SUM(琼湖!E26+胭脂湖!E26+新湾!E26+南嘴!E26+草尾!E26+阳罗洲!E26+四季红!E26+黄茅洲!E26+南大膳!E26+共华!E26+泗湖山!E26+茶盘洲!E26+南洞庭!E26+漉湖!E26+行业部门!E26) -> 0 | F27: =SUM(琼湖!F26+胭脂湖!F26+新湾!F26+南嘴!F26+草尾!F26+阳罗洲!F26+四季红!F26+黄茅洲!F26+南大膳!F26+共华!F26+泗湖山!F26+茶盘洲!F26+南洞庭!F26+漉湖!F26+行业部门!F26) -> 0 | G27: =SUM(琼湖!G26+胭脂湖!G26+新湾!G26+南嘴!G26+草尾!G26+阳罗洲!G26+四季红!G26+黄茅洲!G26+南大膳!G26+共华!G26+泗湖山!G26+茶盘洲!G26+南洞庭!G26+漉湖!G26+行业部门!G26) -> 0 | H27: =SUM(琼湖!H26+胭脂湖!H26+新湾!H26+南嘴!H26+草尾!H26+阳罗洲!H26+四季红!H26+黄茅洲!H26+南大膳!H26+共华!H26+泗湖山!H26+茶盘洲!H26+南洞庭!H26+漉湖!H26+行业部门!H26) -> 0 | I27: =SUM(琼湖!I26+胭脂湖!I26+新湾!I26+南嘴!I26+草尾!I26+阳罗洲!I26+四季红!I26+黄茅洲!I26+南大膳!I26+共华!I26+泗湖山!I26+茶盘洲!I26+南洞庭!I26+漉湖!I26+行业部门!I26) -> 0 | J27: =SUM(琼湖!J26+胭脂湖!J26+新湾!J26+南嘴!J26+草尾!J26+阳罗洲!J26+四季红!J26+黄茅洲!J26+南大膳!J26+共华!J26+泗湖山!J26+茶盘洲!J26+南洞庭!J26+漉湖!J26+行业部门!J26) -> 0 | K27: =SUM(琼湖!K26+胭脂湖!K26+新湾!K26+南嘴!K26+草尾!K26+阳罗洲!K26+四季红!K26+黄茅洲!K26+南大膳!K26+共华!K26+泗湖山!K26+茶盘洲!K26+南洞庭!K26+漉湖!K26+行业部门!K26) -> 0 | L27: =SUM(琼湖!L26+胭脂湖!L26+新湾!L26+南嘴!L26+草尾!L26+阳罗洲!L26+四季红!L26+黄茅洲!L26+南大膳!L26+共华!L26+泗湖山!L26+茶盘洲!L26+南洞庭!L26+漉湖!L26+行业部门!L26) -> 0 | M27: =SUM(琼湖!M26+胭脂湖!M26+新湾!M26+南嘴!M26+草尾!M26+阳罗洲!M26+四季红!M26+黄茅洲!M26+南大膳!M26+共华!M26+泗湖山!M26+茶盘洲!M26+南洞庭!M26+漉湖!M26+行业部门!M26) -> 0 | N27: =SUM(琼湖!N26+胭脂湖!N26+新湾!N26+南嘴!N26+草尾!N26+阳罗洲!N26+四季红!N26+黄茅洲!N26+南大膳!N26+共华!N26+泗湖山!N26+茶盘洲!N26+南洞庭!N26+漉湖!N26+行业部门!N26) -> 0
B28: 1.住房 | C28: =SUM(琼湖!C27+胭脂湖!C27+新湾!C27+南嘴!C27+草尾!C27+阳罗洲!C27+四季红!C27+黄茅洲!C27+南大膳!C27+共华!C27+泗湖山!C27+茶盘洲!C27+南洞庭!C27+漉湖!C27) -> 0 | D28: =SUM(琼湖!D27+胭脂湖!D27+新湾!D27+南嘴!D27+草尾!D27+阳罗洲!D27+四季红!D27+黄茅洲!D27+南大膳!D27+共华!D27+泗湖山!D27+茶盘洲!D27+南洞庭!D27+漉湖!D27) -> 0 | E28: =SUM(琼湖!E27+胭脂湖!E27+新湾!E27+南嘴!E27+草尾!E27+阳罗洲!E27+四季红!E27+黄茅洲!E27+南大膳!E27+共华!E27+泗湖山!E27+茶盘洲!E27+南洞庭!E27+漉湖!E27) -> 0 | F28: =SUM(琼湖!F27+胭脂湖!F27+新湾!F27+南嘴!F27+草尾!F27+阳罗洲!F27+四季红!F27+黄茅洲!F27+南大膳!F27+共华!F27+泗湖山!F27+茶盘洲!F27+南洞庭!F27+漉湖!F27) -> 0 | G28: =SUM(琼湖!G27+胭脂湖!G27+新湾!G27+南嘴!G27+草尾!G27+阳罗洲!G27+四季红!G27+黄茅洲!G27+南大膳!G27+共华!G27+泗湖山!G27+茶盘洲!G27+南洞庭!G27+漉湖!G27) -> 0 | H28: =SUM(琼湖!H27+胭脂湖!H27+新湾!H27+南嘴!H27+草尾!H27+阳罗洲!H27+四季红!H27+黄茅洲!H27+南大膳!H27+共华!H27+泗湖山!H27+茶盘洲!H27+南洞庭!H27+漉湖!H27) -> 0 | I28: =SUM(琼湖!I27+胭脂湖!I27+新湾!I27+南嘴!I27+草尾!I27+阳罗洲!I27+四季红!I27+黄茅洲!I27+南大膳!I27+共华!I27+泗湖山!I27+茶盘洲!I27+南洞庭!I27+漉湖!I27) -> 0 | J28: =SUM(琼湖!J27+胭脂湖!J27+新湾!J27+南嘴!J27+草尾!J27+阳罗洲!J27+四季红!J27+黄茅洲!J27+南大膳!J27+共华!J27+泗湖山!J27+茶盘洲!J27+南洞庭!J27+漉湖!J27) -> 0 | K28: =SUM(琼湖!K27+胭脂湖!K27+新湾!K27+南嘴!K27+草尾!K27+阳罗洲!K27+四季红!K27+黄茅洲!K27+南大膳!K27+共华!K27+泗湖山!K27+茶盘洲!K27+南洞庭!K27+漉湖!K27) -> 0 | L28: =SUM(琼湖!L27+胭脂湖!L27+新湾!L27+南嘴!L27+草尾!L27+阳罗洲!L27+四季红!L27+黄茅洲!L27+南大膳!L27+共华!L27+泗湖山!L27+茶盘洲!L27+南洞庭!L27+漉湖!L27) -> 0 | M28: =SUM(琼湖!M27+胭脂湖!M27+新湾!M27+南嘴!M27+草尾!M27+阳罗洲!M27+四季红!M27+黄茅洲!M27+南大膳!M27+共华!M27+泗湖山!M27+茶盘洲!M27+南洞庭!M27+漉湖!M27) -> 0 | N28: =SUM(琼湖!N27+胭脂湖!N27+新湾!N27+南嘴!N27+草尾!N27+阳罗洲!N27+四季红!N27+黄茅洲!N27+南大膳!N27+共华!N27+泗湖山!N27+茶盘洲!N27+南洞庭!N27+漉湖!N27) -> 0
B29: 2.教育 | C29: =SUM(琼湖!C28+胭脂湖!C28+新湾!C28+南嘴!C28+草尾!C28+阳罗洲!C28+四季红!C28+黄茅洲!C28+南大膳!C28+共华!C28+泗湖山!C28+茶盘洲!C28+南洞庭!C28+漉湖!C28) -> 0 | D29: =SUM(琼湖!D28+胭脂湖!D28+新湾!D28+南嘴!D28+草尾!D28+阳罗洲!D28+四季红!D28+黄茅洲!D28+南大膳!D28+共华!D28+泗湖山!D28+茶盘洲!D28+南洞庭!D28+漉湖!D28) -> 0 | E29: =SUM(琼湖!E28+胭脂湖!E28+新湾!E28+南嘴!E28+草尾!E28+阳罗洲!E28+四季红!E28+黄茅洲!E28+南大膳!E28+共华!E28+泗湖山!E28+茶盘洲!E28+南洞庭!E28+漉湖!E28) -> 0 | F29: =SUM(琼湖!F28+胭脂湖!F28+新湾!F28+南嘴!F28+草尾!F28+阳罗洲!F28+四季红!F28+黄茅洲!F28+南大膳!F28+共华!F28+泗湖山!F28+茶盘洲!F28+南洞庭!F28+漉湖!F28) -> 0 | G29: =SUM(琼湖!G28+胭脂湖!G28+新湾!G28+南嘴!G28+草尾!G28+阳罗洲!G28+四季红!G28+黄茅洲!G28+南大膳!G28+共华!G28+泗湖山!G28+茶盘洲!G28+南洞庭!G28+漉湖!G28) -> 0 | H29: =SUM(琼湖!H28+胭脂湖!H28+新湾!H28+南嘴!H28+草尾!H28+阳罗洲!H28+四季红!H28+黄茅洲!H28+南大膳!H28+共华!H28+泗湖山!H28+茶盘洲!H28+南洞庭!H28+漉湖!H28) -> 0 | I29: =SUM(琼湖!I28+胭脂湖!I28+新湾!I28+南嘴!I28+草尾!I28+阳罗洲!I28+四季红!I28+黄茅洲!I28+南大膳!I28+共华!I28+泗湖山!I28+茶盘洲!I28+南洞庭!I28+漉湖!I28) -> 0 | J29: =SUM(琼湖!J28+胭脂湖!J28+新湾!J28+南嘴!J28+草尾!J28+阳罗洲!J28+四季红!J28+黄茅洲!J28+南大膳!J28+共华!J28+泗湖山!J28+茶盘洲!J28+南洞庭!J28+漉湖!J28) -> 0 | K29: =SUM(琼湖!K28+胭脂湖!K28+新湾!K28+南嘴!K28+草尾!K28+阳罗洲!K28+四季红!K28+黄茅洲!K28+南大膳!K28+共华!K28+泗湖山!K28+茶盘洲!K28+南洞庭!K28+漉湖!K28) -> 0 | L29: =SUM(琼湖!L28+胭脂湖!L28+新湾!L28+南嘴!L28+草尾!L28+阳罗洲!L28+四季红!L28+黄茅洲!L28+南大膳!L28+共华!L28+泗湖山!L28+茶盘洲!L28+南洞庭!L28+漉湖!L28) -> 0 | M29: =SUM(琼湖!M28+胭脂湖!M28+新湾!M28+南嘴!M28+草尾!M28+阳罗洲!M28+四季红!M28+黄茅洲!M28+南大膳!M28+共华!M28+泗湖山!M28+茶盘洲!M28+南洞庭!M28+漉湖!M28) -> 0 | N29: =SUM(琼湖!N28+胭脂湖!N28+新湾!N28+南嘴!N28+草尾!N28+阳罗洲!N28+四季红!N28+黄茅洲!N28+南大膳!N28+共华!N28+泗湖山!N28+茶盘洲!N28+南洞庭!N28+漉湖!N28) -> 0
B30: 3.健康 | C30: =SUM(琼湖!C29+胭脂湖!C29+新湾!C29+南嘴!C29+草尾!C29+阳罗洲!C29+四季红!C29+黄茅洲!C29+南大膳!C29+共华!C29+泗湖山!C29+茶盘洲!C29+南洞庭!C29+漉湖!C29) -> 0 | D30: =SUM(琼湖!D29+胭脂湖!D29+新湾!D29+南嘴!D29+草尾!D29+阳罗洲!D29+四季红!D29+黄茅洲!D29+南大膳!D29+共华!D29+泗湖山!D29+茶盘洲!D29+南洞庭!D29+漉湖!D29) -> 0 | E30: =SUM(琼湖!E29+胭脂湖!E29+新湾!E29+南嘴!E29+草尾!E29+阳罗洲!E29+四季红!E29+黄茅洲!E29+南大膳!E29+共华!E29+泗湖山!E29+茶盘洲!E29+南洞庭!E29+漉湖!E29) -> 0 | F30: =SUM(琼湖!F29+胭脂湖!F29+新湾!F29+南嘴!F29+草尾!F29+阳罗洲!F29+四季红!F29+黄茅洲!F29+南大膳!F29+共华!F29+泗湖山!F29+茶盘洲!F29+南洞庭!F29+漉湖!F29) -> 0 | G30: =SUM(琼湖!G29+胭脂湖!G29+新湾!G29+南嘴!G29+草尾!G29+阳罗洲!G29+四季红!G29+黄茅洲!G29+南大膳!G29+共华!G29+泗湖山!G29+茶盘洲!G29+南洞庭!G29+漉湖!G29) -> 0 | H30: =SUM(琼湖!H29+胭脂湖!H29+新湾!H29+南嘴!H29+草尾!H29+阳罗洲!H29+四季红!H29+黄茅洲!H29+南大膳!H29+共华!H29+泗湖山!H29+茶盘洲!H29+南洞庭!H29+漉湖!H29) -> 0 | I30: =SUM(琼湖!I29+胭脂湖!I29+新湾!I29+南嘴!I29+草尾!I29+阳罗洲!I29+四季红!I29+黄茅洲!I29+南大膳!I29+共华!I29+泗湖山!I29+茶盘洲!I29+南洞庭!I29+漉湖!I29) -> 0 | J30: =SUM(琼湖!J29+胭脂湖!J29+新湾!J29+南嘴!J29+草尾!J29+阳罗洲!J29+四季红!J29+黄茅洲!J29+南大膳!J29+共华!J29+泗湖山!J29+茶盘洲!J29+南洞庭!J29+漉湖!J29) -> 0 | K30: =SUM(琼湖!K29+胭脂湖!K29+新湾!K29+南嘴!K29+草尾!K29+阳罗洲!K29+四季红!K29+黄茅洲!K29+南大膳!K29+共华!K29+泗湖山!K29+茶盘洲!K29+南洞庭!K29+漉湖!K29) -> 0 | L30: =SUM(琼湖!L29+胭脂湖!L29+新湾!L29+南嘴!L29+草尾!L29+阳罗洲!L29+四季红!L29+黄茅洲!L29+南大膳!L29+共华!L29+泗湖山!L29+茶盘洲!L29+南洞庭!L29+漉湖!L29) -> 0 | M30: =SUM(琼湖!M29+胭脂湖!M29+新湾!M29+南嘴!M29+草尾!M29+阳罗洲!M29+四季红!M29+黄茅洲!M29+南大膳!M29+共华!M29+泗湖山!M29+茶盘洲!M29+南洞庭!M29+漉湖!M29) -> 0 | N30: =SUM(琼湖!N29+胭脂湖!N29+新湾!N29+南嘴!N29+草尾!N29+阳罗洲!N29+四季红!N29+黄茅洲!N29+南大膳!N29+共华!N29+泗湖山!N29+茶盘洲!N29+南洞庭!N29+漉湖!N29) -> 0
B31: 4.综合保障 | C31: =SUM(琼湖!C30+胭脂湖!C30+新湾!C30+南嘴!C30+草尾!C30+阳罗洲!C30+四季红!C30+黄茅洲!C30+南大膳!C30+共华!C30+泗湖山!C30+茶盘洲!C30+南洞庭!C30+漉湖!C30) -> 0 | D31: =SUM(琼湖!D30+胭脂湖!D30+新湾!D30+南嘴!D30+草尾!D30+阳罗洲!D30+四季红!D30+黄茅洲!D30+南大膳!D30+共华!D30+泗湖山!D30+茶盘洲!D30+南洞庭!D30+漉湖!D30) -> 0 | E31: =SUM(琼湖!E30+胭脂湖!E30+新湾!E30+南嘴!E30+草尾!E30+阳罗洲!E30+四季红!E30+黄茅洲!E30+南大膳!E30+共华!E30+泗湖山!E30+茶盘洲!E30+南洞庭!E30+漉湖!E30) -> 0 | F31: =SUM(琼湖!F30+胭脂湖!F30+新湾!F30+南嘴!F30+草尾!F30+阳罗洲!F30+四季红!F30+黄茅洲!F30+南大膳!F30+共华!F30+泗湖山!F30+茶盘洲!F30+南洞庭!F30+漉湖!F30) -> 0 | G31: =SUM(琼湖!G30+胭脂湖!G30+新湾!G30+南嘴!G30+草尾!G30+阳罗洲!G30+四季红!G30+黄茅洲!G30+南大膳!G30+共华!G30+泗湖山!G30+茶盘洲!G30+南洞庭!G30+漉湖!G30) -> 0 | H31: =SUM(琼湖!H30+胭脂湖!H30+新湾!H30+南嘴!H30+草尾!H30+阳罗洲!H30+四季红!H30+黄茅洲!H30+南大膳!H30+共华!H30+泗湖山!H30+茶盘洲!H30+南洞庭!H30+漉湖!H30) -> 0 | I31: =SUM(琼湖!I30+胭脂湖!I30+新湾!I30+南嘴!I30+草尾!I30+阳罗洲!I30+四季红!I30+黄茅洲!I30+南大膳!I30+共华!I30+泗湖山!I30+茶盘洲!I30+南洞庭!I30+漉湖!I30) -> 0 | J31: =SUM(琼湖!J30+胭脂湖!J30+新湾!J30+南嘴!J30+草尾!J30+阳罗洲!J30+四季红!J30+黄茅洲!J30+南大膳!J30+共华!J30+泗湖山!J30+茶盘洲!J30+南洞庭!J30+漉湖!J30) -> 0 | K31: =SUM(琼湖!K30+胭脂湖!K30+新湾!K30+南嘴!K30+草尾!K30+阳罗洲!K30+四季红!K30+黄茅洲!K30+南大膳!K30+共华!K30+泗湖山!K30+茶盘洲!K30+南洞庭!K30+漉湖!K30) -> 0 | L31: =SUM(琼湖!L30+胭脂湖!L30+新湾!L30+南嘴!L30+草尾!L30+阳罗洲!L30+四季红!L30+黄茅洲!L30+南大膳!L30+共华!L30+泗湖山!L30+茶盘洲!L30+南洞庭!L30+漉湖!L30) -> 0 | M31: =SUM(琼湖!M30+胭脂湖!M30+新湾!M30+南嘴!M30+草尾!M30+阳罗洲!M30+四季红!M30+黄茅洲!M30+南大膳!M30+共华!M30+泗湖山!M30+茶盘洲!M30+南洞庭!M30+漉湖!M30) -> 0 | N31: =SUM(琼湖!N30+胭脂湖!N30+新湾!N30+南嘴!N30+草尾!N30+阳罗洲!N30+四季红!N30+黄茅洲!N30+南大膳!N30+共华!N30+泗湖山!N30+茶盘洲!N30+南洞庭!N30+漉湖!N30) -> 0
B32: 六、乡村治理和精神文明建设 | C32: =SUM(琼湖!C31+胭脂湖!C31+新湾!C31+南嘴!C31+草尾!C31+阳罗洲!C31+四季红!C31+黄茅洲!C31+南大膳!C31+共华!C31+泗湖山!C31+茶盘洲!C31+南洞庭!C31+漉湖!C31+行业部门!C31) -> 0 | D32: =SUM(琼湖!D31+胭脂湖!D31+新湾!D31+南嘴!D31+草尾!D31+阳罗洲!D31+四季红!D31+黄茅洲!D31+南大膳!D31+共华!D31+泗湖山!D31+茶盘洲!D31+南洞庭!D31+漉湖!D31+行业部门!D31) -> 0 | E32: =SUM(琼湖!E31+胭脂湖!E31+新湾!E31+南嘴!E31+草尾!E31+阳罗洲!E31+四季红!E31+黄茅洲!E31+南大膳!E31+共华!E31+泗湖山!E31+茶盘洲!E31+南洞庭!E31+漉湖!E31+行业部门!E31) -> 0 | F32: =SUM(琼湖!F31+胭脂湖!F31+新湾!F31+南嘴!F31+草尾!F31+阳罗洲!F31+四季红!F31+黄茅洲!F31+南大膳!F31+共华!F31+泗湖山!F31+茶盘洲!F31+南洞庭!F31+漉湖!F31+行业部门!F31) -> 0 | G32: =SUM(琼湖!G31+胭脂湖!G31+新湾!G31+南嘴!G31+草尾!G31+阳罗洲!G31+四季红!G31+黄茅洲!G31+南大膳!G31+共华!G31+泗湖山!G31+茶盘洲!G31+南洞庭!G31+漉湖!G31+行业部门!G31) -> 0 | H32: =SUM(琼湖!H31+胭脂湖!H31+新湾!H31+南嘴!H31+草尾!H31+阳罗洲!H31+四季红!H31+黄茅洲!H31+南大膳!H31+共华!H31+泗湖山!H31+茶盘洲!H31+南洞庭!H31+漉湖!H31+行业部门!H31) -> 0 | I32: =SUM(琼湖!I31+胭脂湖!I31+新湾!I31+南嘴!I31+草尾!I31+阳罗洲!I31+四季红!I31+黄茅洲!I31+南大膳!I31+共华!I31+泗湖山!I31+茶盘洲!I31+南洞庭!I31+漉湖!I31+行业部门!I31) -> 0 | J32: =SUM(琼湖!J31+胭脂湖!J31+新湾!J31+南嘴!J31+草尾!J31+阳罗洲!J31+四季红!J31+黄茅洲!J31+南大膳!J31+共华!J31+泗湖山!J31+茶盘洲!J31+南洞庭!J31+漉湖!J31+行业部门!J31) -> 0 | K32: =SUM(琼湖!K31+胭脂湖!K31+新湾!K31+南嘴!K31+草尾!K31+阳罗洲!K31+四季红!K31+黄茅洲!K31+南大膳!K31+共华!K31+泗湖山!K31+茶盘洲!K31+南洞庭!K31+漉湖!K31+行业部门!K31) -> 0 | L32: =SUM(琼湖!L31+胭脂湖!L31+新湾!L31+南嘴!L31+草尾!L31+阳罗洲!L31+四季红!L31+黄茅洲!L31+南大膳!L31+共华!L31+泗湖山!L31+茶盘洲!L31+南洞庭!L31+漉湖!L31+行业部门!L31) -> 0 | M32: =SUM(琼湖!M31+胭脂湖!M31+新湾!M31+南嘴!M31+草尾!M31+阳罗洲!M31+四季红!M31+黄茅洲!M31+南大膳!M31+共华!M31+泗湖山!M31+茶盘洲!M31+南洞庭!M31+漉湖!M31+行业部门!M31) -> 0 | N32: =SUM(琼湖!N31+胭脂湖!N31+新湾!N31+南嘴!N31+草尾!N31+阳罗洲!N31+四季红!N31+黄茅洲!N31+南大膳!N31+共华!N31+泗湖山!N31+茶盘洲!N31+南洞庭!N31+漉湖!N31+行业部门!N31) -> 0
B33: 1.乡村治理 | C33: =SUM(琼湖!C32+胭脂湖!C32+新湾!C32+南嘴!C32+草尾!C32+阳罗洲!C32+四季红!C32+黄茅洲!C32+南大膳!C32+共华!C32+泗湖山!C32+茶盘洲!C32+南洞庭!C32+漉湖!C32) -> 0 | D33: =SUM(琼湖!D32+胭脂湖!D32+新湾!D32+南嘴!D32+草尾!D32+阳罗洲!D32+四季红!D32+黄茅洲!D32+南大膳!D32+共华!D32+泗湖山!D32+茶盘洲!D32+南洞庭!D32+漉湖!D32) -> 0 | E33: =SUM(琼湖!E32+胭脂湖!E32+新湾!E32+南嘴!E32+草尾!E32+阳罗洲!E32+四季红!E32+黄茅洲!E32+南大膳!E32+共华!E32+泗湖山!E32+茶盘洲!E32+南洞庭!E32+漉湖!E32) -> 0 | F33: =SUM(琼湖!F32+胭脂湖!F32+新湾!F32+南嘴!F32+草尾!F32+阳罗洲!F32+四季红!F32+黄茅洲!F32+南大膳!F32+共华!F32+泗湖山!F32+茶盘洲!F32+南洞庭!F32+漉湖!F32) -> 0 | G33: =SUM(琼湖!G32+胭脂湖!G32+新湾!G32+南嘴!G32+草尾!G32+阳罗洲!G32+四季红!G32+黄茅洲!G32+南大膳!G32+共华!G32+泗湖山!G32+茶盘洲!G32+南洞庭!G32+漉湖!G32) -> 0 | H33: =SUM(琼湖!H32+胭脂湖!H32+新湾!H32+南嘴!H32+草尾!H32+阳罗洲!H32+四季红!H32+黄茅洲!H32+南大膳!H32+共华!H32+泗湖山!H32+茶盘洲!H32+南洞庭!H32+漉湖!H32) -> 0 | I33: =SUM(琼湖!I32+胭脂湖!I32+新湾!I32+南嘴!I32+草尾!I32+阳罗洲!I32+四季红!I32+黄茅洲!I32+南大膳!I32+共华!I32+泗湖山!I32+茶盘洲!I32+南洞庭!I32+漉湖!I32) -> 0 | J33: =SUM(琼湖!J32+胭脂湖!J32+新湾!J32+南嘴!J32+草尾!J32+阳罗洲!J32+四季红!J32+黄茅洲!J32+南大膳!J32+共华!J32+泗湖山!J32+茶盘洲!J32+南洞庭!J32+漉湖!J32) -> 0 | K33: =SUM(琼湖!K32+胭脂湖!K32+新湾!K32+南嘴!K32+草尾!K32+阳罗洲!K32+四季红!K32+黄茅洲!K32+南大膳!K32+共华!K32+泗湖山!K32+茶盘洲!K32+南洞庭!K32+漉湖!K32) -> 0 | L33: =SUM(琼湖!L32+胭脂湖!L32+新湾!L32+南嘴!L32+草尾!L32+阳罗洲!L32+四季红!L32+黄茅洲!L32+南大膳!L32+共华!L32+泗湖山!L32+茶盘洲!L32+南洞庭!L32+漉湖!L32) -> 0 | M33: =SUM(琼湖!M32+胭脂湖!M32+新湾!M32+南嘴!M32+草尾!M32+阳罗洲!M32+四季红!M32+黄茅洲!M32+南大膳!M32+共华!M32+泗湖山!M32+茶盘洲!M32+南洞庭!M32+漉湖!M32) -> 0 | N33: =SUM(琼湖!N32+胭脂湖!N32+新湾!N32+南嘴!N32+草尾!N32+阳罗洲!N32+四季红!N32+黄茅洲!N32+南大膳!N32+共华!N32+泗湖山!N32+茶盘洲!N32+南洞庭!N32+漉湖!N32) -> 0
B34: 2.农村精神文明建设 | C34: =SUM(琼湖!C33+胭脂湖!C33+新湾!C33+南嘴!C33+草尾!C33+阳罗洲!C33+四季红!C33+黄茅洲!C33+南大膳!C33+共华!C33+泗湖山!C33+茶盘洲!C33+南洞庭!C33+漉湖!C33) -> 0 | D34: =SUM(琼湖!D33+胭脂湖!D33+新湾!D33+南嘴!D33+草尾!D33+阳罗洲!D33+四季红!D33+黄茅洲!D33+南大膳!D33+共华!D33+泗湖山!D33+茶盘洲!D33+南洞庭!D33+漉湖!D33) -> 0 | E34: =SUM(琼湖!E33+胭脂湖!E33+新湾!E33+南嘴!E33+草尾!E33+阳罗洲!E33+四季红!E33+黄茅洲!E33+南大膳!E33+共华!E33+泗湖山!E33+茶盘洲!E33+南洞庭!E33+漉湖!E33) -> 0 | F34: =SUM(琼湖!F33+胭脂湖!F33+新湾!F33+南嘴!F33+草尾!F33+阳罗洲!F33+四季红!F33+黄茅洲!F33+南大膳!F33+共华!F33+泗湖山!F33+茶盘洲!F33+南洞庭!F33+漉湖!F33) -> 0 | G34: =SUM(琼湖!G33+胭脂湖!G33+新湾!G33+南嘴!G33+草尾!G33+阳罗洲!G33+四季红!G33+黄茅洲!G33+南大膳!G33+共华!G33+泗湖山!G33+茶盘洲!G33+南洞庭!G33+漉湖!G33) -> 0 | H34: =SUM(琼湖!H33+胭脂湖!H33+新湾!H33+南嘴!H33+草尾!H33+阳罗洲!H33+四季红!H33+黄茅洲!H33+南大膳!H33+共华!H33+泗湖山!H33+茶盘洲!H33+南洞庭!H33+漉湖!H33) -> 0 | I34: =SUM(琼湖!I33+胭脂湖!I33+新湾!I33+南嘴!I33+草尾!I33+阳罗洲!I33+四季红!I33+黄茅洲!I33+南大膳!I33+共华!I33+泗湖山!I33+茶盘洲!I33+南洞庭!I33+漉湖!I33) -> 0 | J34: =SUM(琼湖!J33+胭脂湖!J33+新湾!J33+南嘴!J33+草尾!J33+阳罗洲!J33+四季红!J33+黄茅洲!J33+南大膳!J33+共华!J33+泗湖山!J33+茶盘洲!J33+南洞庭!J33+漉湖!J33) -> 0 | K34: =SUM(琼湖!K33+胭脂湖!K33+新湾!K33+南嘴!K33+草尾!K33+阳罗洲!K33+四季红!K33+黄茅洲!K33+南大膳!K33+共华!K33+泗湖山!K33+茶盘洲!K33+南洞庭!K33+漉湖!K33) -> 0 | L34: =SUM(琼湖!L33+胭脂湖!L33+新湾!L33+南嘴!L33+草尾!L33+阳罗洲!L33+四季红!L33+黄茅洲!L33+南大膳!L33+共华!L33+泗湖山!L33+茶盘洲!L33+南洞庭!L33+漉湖!L33) -> 0 | M34: =SUM(琼湖!M33+胭脂湖!M33+新湾!M33+南嘴!M33+草尾!M33+阳罗洲!M33+四季红!M33+黄茅洲!M33+南大膳!M33+共华!M33+泗湖山!M33+茶盘洲!M33+南洞庭!M33+漉湖!M33) -> 0 | N34: =SUM(琼湖!N33+胭脂湖!N33+新湾!N33+南嘴!N33+草尾!N33+阳罗洲!N33+四季红!N33+黄茅洲!N33+南大膳!N33+共华!N33+泗湖山!N33+茶盘洲!N33+南洞庭!N33+漉湖!N33) -> 0
B35: 七、项目管理费 | C35: =SUM(琼湖!C34+胭脂湖!C34+新湾!C34+南嘴!C34+草尾!C34+阳罗洲!C34+四季红!C34+黄茅洲!C34+南大膳!C34+共华!C34+泗湖山!C34+茶盘洲!C34+南洞庭!C34+漉湖!C34+行业部门!C34) -> 0 | D35: =SUM(琼湖!D34+胭脂湖!D34+新湾!D34+南嘴!D34+草尾!D34+阳罗洲!D34+四季红!D34+黄茅洲!D34+南大膳!D34+共华!D34+泗湖山!D34+茶盘洲!D34+南洞庭!D34+漉湖!D34+行业部门!D34) -> 0 | E35: =SUM(琼湖!E34+胭脂湖!E34+新湾!E34+南嘴!E34+草尾!E34+阳罗洲!E34+四季红!E34+黄茅洲!E34+南大膳!E34+共华!E34+泗湖山!E34+茶盘洲!E34+南洞庭!E34+漉湖!E34+行业部门!E34) -> 0 | F35: =SUM(琼湖!F34+胭脂湖!F34+新湾!F34+南嘴!F34+草尾!F34+阳罗洲!F34+四季红!F34+黄茅洲!F34+南大膳!F34+共华!F34+泗湖山!F34+茶盘洲!F34+南洞庭!F34+漉湖!F34+行业部门!F34) -> 0 | G35: =SUM(琼湖!G34+胭脂湖!G34+新湾!G34+南嘴!G34+草尾!G34+阳罗洲!G34+四季红!G34+黄茅洲!G34+南大膳!G34+共华!G34+泗湖山!G34+茶盘洲!G34+南洞庭!G34+漉湖!G34+行业部门!G34) -> 0 | H35: =SUM(琼湖!H34+胭脂湖!H34+新湾!H34+南嘴!H34+草尾!H34+阳罗洲!H34+四季红!H34+黄茅洲!H34+南大膳!H34+共华!H34+泗湖山!H34+茶盘洲!H34+南洞庭!H34+漉湖!H34+行业部门!H34) -> 0 | I35: =SUM(琼湖!I34+胭脂湖!I34+新湾!I34+南嘴!I34+草尾!I34+阳罗洲!I34+四季红!I34+黄茅洲!I34+南大膳!I34+共华!I34+泗湖山!I34+茶盘洲!I34+南洞庭!I34+漉湖!I34+行业部门!I34) -> 0 | J35: =SUM(琼湖!J34+胭脂湖!J34+新湾!J34+南嘴!J34+草尾!J34+阳罗洲!J34+四季红!J34+黄茅洲!J34+南大膳!J34+共华!J34+泗湖山!J34+茶盘洲!J34+南洞庭!J34+漉湖!J34+行业部门!J34) -> 0 | K35: =SUM(琼湖!K34+胭脂湖!K34+新湾!K34+南嘴!K34+草尾!K34+阳罗洲!K34+四季红!K34+黄茅洲!K34+南大膳!K34+共华!K34+泗湖山!K34+茶盘洲!K34+南洞庭!K34+漉湖!K34+行业部门!K34) -> 0 | L35: =SUM(琼湖!L34+胭脂湖!L34+新湾!L34+南嘴!L34+草尾!L34+阳罗洲!L34+四季红!L34+黄茅洲!L34+南大膳!L34+共华!L34+泗湖山!L34+茶盘洲!L34+南洞庭!L34+漉湖!L34+行业部门!L34) -> 0 | M35: =SUM(琼湖!M34+胭脂湖!M34+新湾!M34+南嘴!M34+草尾!M34+阳罗洲!M34+四季红!M34+黄茅洲!M34+南大膳!M34+共华!M34+泗湖山!M34+茶盘洲!M34+南洞庭!M34+漉湖!M34+行业部门!M34) -> 0 | N35: =SUM(琼湖!N34+胭脂湖!N34+新湾!N34+南嘴!N34+草尾!N34+阳罗洲!N34+四季红!N34+黄茅洲!N34+南大膳!N34+共华!N34+泗湖山!N34+茶盘洲!N34+南洞庭!N34+漉湖!N34+行业部门!N34) -> 0
B36: 八、其他 | C36: =SUM(琼湖!C35+胭脂湖!C35+新湾!C35+南嘴!C35+草尾!C35+阳罗洲!C35+四季红!C35+黄茅洲!C35+南大膳!C35+共华!C35+泗湖山!C35+茶盘洲!C35+南洞庭!C35+漉湖!C35+行业部门!C35) -> 0 | D36: =SUM(琼湖!D35+胭脂湖!D35+新湾!D35+南嘴!D35+草尾!D35+阳罗洲!D35+四季红!D35+黄茅洲!D35+南大膳!D35+共华!D35+泗湖山!D35+茶盘洲!D35+南洞庭!D35+漉湖!D35+行业部门!D35) -> 0 | E36: =SUM(琼湖!E35+胭脂湖!E35+新湾!E35+南嘴!E35+草尾!E35+阳罗洲!E35+四季红!E35+黄茅洲!E35+南大膳!E35+共华!E35+泗湖山!E35+茶盘洲!E35+南洞庭!E35+漉湖!E35+行业部门!E35) -> 0 | F36: =SUM(琼湖!F35+胭脂湖!F35+新湾!F35+南嘴!F35+草尾!F35+阳罗洲!F35+四季红!F35+黄茅洲!F35+南大膳!F35+共华!F35+泗湖山!F35+茶盘洲!F35+南洞庭!F35+漉湖!F35+行业部门!F35) -> 0 | G36: =SUM(琼湖!G35+胭脂湖!G35+新湾!G35+南嘴!G35+草尾!G35+阳罗洲!G35+四季红!G35+黄茅洲!G35+南大膳!G35+共华!G35+泗湖山!G35+茶盘洲!G35+南洞庭!G35+漉湖!G35+行业部门!G35) -> 0 | H36: =SUM(琼湖!H35+胭脂湖!H35+新湾!H35+南嘴!H35+草尾!H35+阳罗洲!H35+四季红!H35+黄茅洲!H35+南大膳!H35+共华!H35+泗湖山!H35+茶盘洲!H35+南洞庭!H35+漉湖!H35+行业部门!H35) -> 0 | I36: =SUM(琼湖!I35+胭脂湖!I35+新湾!I35+南嘴!I35+草尾!I35+阳罗洲!I35+四季红!I35+黄茅洲!I35+南大膳!I35+共华!I35+泗湖山!I35+茶盘洲!I35+南洞庭!I35+漉湖!I35+行业部门!I35) -> 0 | J36: =SUM(琼湖!J35+胭脂湖!J35+新湾!J35+南嘴!J35+草尾!J35+阳罗洲!J35+四季红!J35+黄茅洲!J35+南大膳!J35+共华!J35+泗湖山!J35+茶盘洲!J35+南洞庭!J35+漉湖!J35+行业部门!J35) -> 0 | K36: =SUM(琼湖!K35+胭脂湖!K35+新湾!K35+南嘴!K35+草尾!K35+阳罗洲!K35+四季红!K35+黄茅洲!K35+南大膳!K35+共华!K35+泗湖山!K35+茶盘洲!K35+南洞庭!K35+漉湖!K35+行业部门!K35) -> 0 | L36: =SUM(琼湖!L35+胭脂湖!L35+新湾!L35+南嘴!L35+草尾!L35+阳罗洲!L35+四季红!L35+黄茅洲!L35+南大膳!L35+共华!L35+泗湖山!L35+茶盘洲!L35+南洞庭!L35+漉湖!L35+行业部门!L35) -> 0 | M36: =SUM(琼湖!M35+胭脂湖!M35+新湾!M35+南嘴!M35+草尾!M35+阳罗洲!M35+四季红!M35+黄茅洲!M35+南大膳!M35+共华!M35+泗湖山!M35+茶盘洲!M35+南洞庭!M35+漉湖!M35+行业部门!M35) -> 0 | N36: =SUM(琼湖!N35+胭脂湖!N35+新湾!N35+南嘴!N35+草尾!N35+阳罗洲!N35+四季红!N35+黄茅洲!N35+南大膳!N35+共华!N35+泗湖山!N35+茶盘洲!N35+南洞庭!N35+漉湖!N35+行业部门!N35) -> 0
B37: 1.少数民族特色村寨建设项 | C37: =SUM(琼湖!C36+胭脂湖!C36+新湾!C36+南嘴!C36+草尾!C36+阳罗洲!C36+四季红!C36+黄茅洲!C36+南大膳!C36+共华!C36+泗湖山!C36+茶盘洲!C36+南洞庭!C36+漉湖!C36) -> 0 | D37: =SUM(琼湖!D36+胭脂湖!D36+新湾!D36+南嘴!D36+草尾!D36+阳罗洲!D36+四季红!D36+黄茅洲!D36+南大膳!D36+共华!D36+泗湖山!D36+茶盘洲!D36+南洞庭!D36+漉湖!D36) -> 0 | E37: =SUM(琼湖!E36+胭脂湖!E36+新湾!E36+南嘴!E36+草尾!E36+阳罗洲!E36+四季红!E36+黄茅洲!E36+南大膳!E36+共华!E36+泗湖山!E36+茶盘洲!E36+南洞庭!E36+漉湖!E36) -> 0 | F37: =SUM(琼湖!F36+胭脂湖!F36+新湾!F36+南嘴!F36+草尾!F36+阳罗洲!F36+四季红!F36+黄茅洲!F36+南大膳!F36+共华!F36+泗湖山!F36+茶盘洲!F36+南洞庭!F36+漉湖!F36) -> 0 | G37: =SUM(琼湖!G36+胭脂湖!G36+新湾!G36+南嘴!G36+草尾!G36+阳罗洲!G36+四季红!G36+黄茅洲!G36+南大膳!G36+共华!G36+泗湖山!G36+茶盘洲!G36+南洞庭!G36+漉湖!G36) -> 0 | H37: =SUM(琼湖!H36+胭脂湖!H36+新湾!H36+南嘴!H36+草尾!H36+阳罗洲!H36+四季红!H36+黄茅洲!H36+南大膳!H36+共华!H36+泗湖山!H36+茶盘洲!H36+南洞庭!H36+漉湖!H36) -> 0 | I37: =SUM(琼湖!I36+胭脂湖!I36+新湾!I36+南嘴!I36+草尾!I36+阳罗洲!I36+四季红!I36+黄茅洲!I36+南大膳!I36+共华!I36+泗湖山!I36+茶盘洲!I36+南洞庭!I36+漉湖!I36) -> 0 | J37: =SUM(琼湖!J36+胭脂湖!J36+新湾!J36+南嘴!J36+草尾!J36+阳罗洲!J36+四季红!J36+黄茅洲!J36+南大膳!J36+共华!J36+泗湖山!J36+茶盘洲!J36+南洞庭!J36+漉湖!J36) -> 0 | K37: =SUM(琼湖!K36+胭脂湖!K36+新湾!K36+南嘴!K36+草尾!K36+阳罗洲!K36+四季红!K36+黄茅洲!K36+南大膳!K36+共华!K36+泗湖山!K36+茶盘洲!K36+南洞庭!K36+漉湖!K36) -> 0 | L37: =SUM(琼湖!L36+胭脂湖!L36+新湾!L36+南嘴!L36+草尾!L36+阳罗洲!L36+四季红!L36+黄茅洲!L36+南大膳!L36+共华!L36+泗湖山!L36+茶盘洲!L36+南洞庭!L36+漉湖!L36) -> 0 | M37: =SUM(琼湖!M36+胭脂湖!M36+新湾!M36+南嘴!M36+草尾!M36+阳罗洲!M36+四季红!M36+黄茅洲!M36+南大膳!M36+共华!M36+泗湖山!M36+茶盘洲!M36+南洞庭!M36+漉湖!M36) -> 0 | N37: =SUM(琼湖!N36+胭脂湖!N36+新湾!N36+南嘴!N36+草尾!N36+阳罗洲!N36+四季红!N36+黄茅洲!N36+南大膳!N36+共华!N36+泗湖山!N36+茶盘洲!N36+南洞庭!N36+漉湖!N36) -> 0
B38: 2.困难群众饮用低氟茶 | C38: =SUM(琼湖!C37+胭脂湖!C37+新湾!C37+南嘴!C37+草尾!C37+阳罗洲!C37+四季红!C37+黄茅洲!C37+南大膳!C37+共华!C37+泗湖山!C37+茶盘洲!C37+南洞庭!C37+漉湖!C37) -> 0 | D38: =SUM(琼湖!D37+胭脂湖!D37+新湾!D37+南嘴!D37+草尾!D37+阳罗洲!D37+四季红!D37+黄茅洲!D37+南大膳!D37+共华!D37+泗湖山!D37+茶盘洲!D37+南洞庭!D37+漉湖!D37) -> 0 | E38: =SUM(琼湖!E37+胭脂湖!E37+新湾!E37+南嘴!E37+草尾!E37+阳罗洲!E37+四季红!E37+黄茅洲!E37+南大膳!E37+共华!E37+泗湖山!E37+茶盘洲!E37+南洞庭!E37+漉湖!E37) -> 0 | F38: =SUM(琼湖!F37+胭脂湖!F37+新湾!F37+南嘴!F37+草尾!F37+阳罗洲!F37+四季红!F37+黄茅洲!F37+南大膳!F37+共华!F37+泗湖山!F37+茶盘洲!F37+南洞庭!F37+漉湖!F37) -> 0 | G38: =SUM(琼湖!G37+胭脂湖!G37+新湾!G37+南嘴!G37+草尾!G37+阳罗洲!G37+四季红!G37+黄茅洲!G37+南大膳!G37+共华!G37+泗湖山!G37+茶盘洲!G37+南洞庭!G37+漉湖!G37) -> 0 | H38: =SUM(琼湖!H37+胭脂湖!H37+新湾!H37+南嘴!H37+草尾!H37+阳罗洲!H37+四季红!H37+黄茅洲!H37+南大膳!H37+共华!H37+泗湖山!H37+茶盘洲!H37+南洞庭!H37+漉湖!H37) -> 0 | I38: =SUM(琼湖!I37+胭脂湖!I37+新湾!I37+南嘴!I37+草尾!I37+阳罗洲!I37+四季红!I37+黄茅洲!I37+南大膳!I37+共华!I37+泗湖山!I37+茶盘洲!I37+南洞庭!I37+漉湖!I37) -> 0 | J38: =SUM(琼湖!J37+胭脂湖!J37+新湾!J37+南嘴!J37+草尾!J37+阳罗洲!J37+四季红!J37+黄茅洲!J37+南大膳!J37+共华!J37+泗湖山!J37+茶盘洲!J37+南洞庭!J37+漉湖!J37) -> 0 | K38: =SUM(琼湖!K37+胭脂湖!K37+新湾!K37+南嘴!K37+草尾!K37+阳罗洲!K37+四季红!K37+黄茅洲!K37+南大膳!K37+共华!K37+泗湖山!K37+茶盘洲!K37+南洞庭!K37+漉湖!K37) -> 0 | L38: =SUM(琼湖!L37+胭脂湖!L37+新湾!L37+南嘴!L37+草尾!L37+阳罗洲!L37+四季红!L37+黄茅洲!L37+南大膳!L37+共华!L37+泗湖山!L37+茶盘洲!L37+南洞庭!L37+漉湖!L37) -> 0 | M38: =SUM(琼湖!M37+胭脂湖!M37+新湾!M37+南嘴!M37+草尾!M37+阳罗洲!M37+四季红!M37+黄茅洲!M37+南大膳!M37+共华!M37+泗湖山!M37+茶盘洲!M37+南洞庭!M37+漉湖!M37) -> 0 | N38: =SUM(琼湖!N37+胭脂湖!N37+新湾!N37+南嘴!N37+草尾!N37+阳罗洲!N37+四季红!N37+黄茅洲!N37+南大膳!N37+共华!N37+泗湖山!N37+茶盘洲!N37+南洞庭!N37+漉湖!N37) -> 0
B39: ……

Sheet 琼湖
A1: XX县XX年度巩固拓展脱贫攻坚成果和乡村振兴项目库拟入库项目申报分类汇总表
A3: 单位（盖章）： 单位：万元、个、人
A5: 序号 | B5: 项目类型 | C5: 项目个数 | D5: 资金规模和筹资方式 | I5: 受益对象 | O5: 备注
D6: 项目预算总投资 | E6: 其中 | I6: 受益村（个） | J6: 受益户数（户） | K6: 受益人口数（人） | L6: 其中
E7: 财政衔接资金 | F7: 除财政衔接资金外的统筹整合资金 | G7: 其他财政资金 | H7: 其他筹措资金 | L7: 受益脱贫村数（个） | M7: 受益脱贫户数及防止返贫监测对象户数（户） | N7: 受益脱贫人口数及防止返贫监测对象人口数（人）
B8: 总 计 | C8: =C9+C15+C21+C25+C26+C31+C34+C35 -> 4 | D8: 95 | E8: 95 | F8: 0 | G8: 95 | H8: 0 | I8: 4 | J8: 244 | K8: 586 | L8: 3 | M8: 219 | N8: 528
B9: 一、产业发展 | C9: =C10+C11+C12+C14 -> 2 | D9: 80 | E9: 80 | F9: 0 | G9: 80 | H9: 0 | I9: 2 | J9: 101 | K9: 232 | L9: 1 | M9: 80 | N9: 182
B10: 1.生产项目
B11: 2.加工流通项目
B12: 3.配套设施项目 | C12: 2 | D12: 80 | E12: 80 | F12: 0 | G12: 80 | H12: 0 | I12: 2 | J12: 101 | K12: 232 | L12: 1 | M12: 80 | N12: 182
B13: 4.产业服务支撑项目
B14: 5.金融保险配套项目
B15: 二、就业项目 | C15: =C16+C17+C18+C19+C20 -> 0 | D15: 0 | E15: 0 | F15: 0 | G15: 0 | H15: 0 | I15: 0 | J15: 0 | K15: 0 | L15: 0 | M15: 0 | N15: 0
B16: 1.务工补助
B17: 2.就业培训
B18: 3.创业
B19: 4.乡村工匠
B20: 5.公益性岗位
B21: 三、乡村建设行动 | C21: =C22+C23+C24 -> 2 | D21: 15 | E21: 15 | F21: 0 | G21: 15 | H21: 0 | I21: 2 | J21: 143 | K21: 354 | L21: 2 | M21: 139 | N21: 346
B22: 1.农村基础设施 | C22: 2 | D22: 15 | E22: 15 | F22: 0 | G22: 15 | H22: 0 | I22: 2 | J22: 143 | K22: 354 | L22: 2 | M22: 139 | N22: 346
B23: 2.人居环境整治
B24: 3.农村公共服务
B25: 四、易地搬迁后扶
B26: 五、巩固三保障成果 | C26: =C27+C28+C29+C30 -> 0 | D26: 0 | E26: 0 | F26: 0 | G26: 0 | H26: 0 | I26: 0 | J26: 0 | K26: 0 | L26: 0 | M26: 0 | N26: 0
B27: 1.住房
B28: 2.教育
B29: 3.健康
B30: 4.综合保障
B31: 六、乡村治理和精神文明建设 | C31: =C32+C33 -> 0 | D31: 0 | E31: 0 | F31: 0 | G31: 0 | H31: 0 | I31: 0 | J31: 0 | K31: 0 | L31: 0 | M31: 0 | N31: 0
B32: 1.乡村治理
B33: 2.农村精神文明建设
B34: 七、项目管理费
B35: 八、其他 | C35: =C36+C37 -> 0 | D35: 0 | E35: 0 | F35: 0 | G35: 0 | H35: 0 | I35: 0 | J35: 0 | K35: 0 | L35: 0 | M35: 0 | N35: 0
B36: 1.少数民族特色村寨建设项
B37: 2.困难群众饮用低氟茶
B38: ……

Sheet 胭脂湖
A1: XX县XX年度巩固拓展脱贫攻坚成果和乡村振兴项目库拟入库项目申报分类汇总表
A3: 单位（盖章）： 单位：万元、个、人
A5: 序号 | B5: 项目类型 | C5: 项目个数 | D5: 资金规模和筹资方式 | I5: 受益对象 | O5: 备注
D6: 项目预算总投资 | E6: 其中 | I6: 受益村（个） | J6: 受益户数（户） | K6: 受益人口数（人） | L6: 其中
E7: 财政衔接资金 | F7: 除财政衔接资金外的统筹整合资金 | G7: 其他财政资金 | H7: 其他筹措资金 | L7: 受益脱贫村数（个） | M7: 受益脱贫户数及防止返贫监测对象户数（户） | N7: 受益脱贫人口数及防止返贫监测对象人口数（人）
B8: 总 计 | C8: =C9+C15+C21+C25+C26+C31+C34+C35 -> 12 | D8: 164 | E8: 164 | F8: 0 | G8: 0 | H8: 0 | I8: 12 | J8: 6467 | K8: 21421 | L8: 0 | M8: 433 | N8: 1159
B9: 一、产业发展 | C9: =C10+C11+C12+C14 -> 8 | D9: 128 | E9: 128 | F9: 0 | G9: 0 | H9: 0 | I9: 8 | J9: 6087 | K9: 19949 | L9: 0 | M9: 359 | N9: 958
B10: 1.生产项目 | C10: 3 | D10: 70 | E10: 70 | F10: 0 | G10: 0 | H10: 0 | I10: 3 | J10: 3781 | K10: 13019 | L10: 0 | M10: 245 | N10: 649
B11: 2.加工流通项目
B12: 3.配套设施项目 | C12: 5 | D12: 58 | E12: 58 | F12: 0 | G12: 0 | H12: 0 | I12: 5 | J12: 2306 | K12: 6930 | L12: 0 | M12: 114 | N12: 309
B13: 4.产业服务支撑项目
B14: 5.金融保险配套项目
B15: 二、就业项目 | C15: =C16+C17+C18+C19+C20 -> 0 | D15: 0 | E15: 0 | F15: 0 | G15: 0 | H15: 0 | I15: 0 | J15: 0 | K15: 0 | L15: 0 | M15: 0 | N15: 0
B16: 1.务工补助
B17: 2.就业培训
B18: 3.创业
B19: 4.乡村工匠
B20: 5.公益性岗位
B21: 三、乡村建设行动 | C21: =C22+C23+C24 -> 4 | D21: 36 | E21: 36 | F21: 0 | G21: 0 | H21: 0 | I21: 4 | J21: 380 | K21: 1472 | L21: 0 | M21: 74 | N21: 201
B22: 1.农村基础设施 | C22: 4 | D22: 36 | E22: 36 | F22: 0 | G22: 0 | H22: 0 | I22: 4 | J22: 380 | K22: 1472 | L22: 0 | M22: 74 | N22: 201
B23: 2.人居环境整治
B24: 3.农村公共服务
B25: 四、易地搬迁后扶
B26: 五、巩固三保障成果 | C26: =C27+C28+C29+C30 -> 0 | D26: 0 | E26: 0 | F26: 0 | G26: 0 | H26: 0 | I26: 0 | J26: 0 | K26: 0 | L26: 0 | M26: 0 | N26: 0
B27: 1.住房
B28: 2.教育
B29: 3.健康
B30: 4.综合保障
B31: 六、乡村治理和精神文明建设 | C31: =C32+C33 -> 0 | D31: 0 | E31: 0 | F31: 0 | G31: 0 | H31: 0 | I31: 0 | J31: 0 | K31: 0 | L31: 0 | M31: 0 | N31: 0
B32: 1.乡村治理
B33: 2.农村精神文明建设
B34: 七、项目管理费
B35: 八、其他 | C35: =C36+C37 -> 0 | D35: 0 | E35: 0 | F35: 0 | G35: 0 | H35: 0 | I35: 0 | J35: 0 | K35: 0 | L35: 0 | M35: 0 | N35: 0
B36: 1.少数民族特色村寨建设项
B37: 2.困难群众饮用低氟茶
B38: ……

Sheet 新湾
A1: XX县XX年度巩固拓展脱贫攻坚成果和乡村振兴项目库拟入库项目申报分类汇总表
A3: 单位（盖章）： 单位：万元、个、人
A5: 序号 | B5: 项目类型 | C5: 项目个数 | D5: 资金规模和筹资方式 | I5: 受益对象 | O5: 备注
D6: 项目预算总投资 | E6: 其中 | I6: 受益村（个） | J6: 受益户数（户） | K6: 受益人口数（人） | L6: 其中
E7: 财政衔接资金 | F7: 除财政衔接资金外的统筹整合资金 | G7: 其他财政资金 | H7: 其他筹措资金 | L7: 受益脱贫村数（个） | M7: 受益脱贫户数及防止返贫监测对象户数（户） | N7: 受益脱贫人口数及防止返贫监测对象人口数（人）
B8: 总 计 | C8: =C9+C15+C21+C25+C26+C31+C34+C35 -> 6 | D8: 88 | E8: 88 | F8: 0 | G8: 0 | H8: 0 | I8: 6 | J8: 1559 | K8: 3988 | L8: 1 | M8: 31 | N8: 67
B9: 一、产业发展 | C9: =C10+C11+C12+C14 -> 2 | D9: 45 | E9: 45 | F9: 0 | G9: 0 | H9: 0 | I9: 2 | J9: 1242 | K9: 3041 | L9: 1 | M9: 13 | N9: 28
B10: 1.生产项目 | C10: 2 | D10: 45 | E10: 45 | F10: 0 | G10: 0 | H10: 0 | I10: 2 | J10: 1242 | K10: 3041 | L10: 1 | M10: 13 | N10: 28
B11: 2.加工流通项目
B12: 3.配套设施项目
B13: 4.产业服务支撑项目
B14: 5.金融保险配套项目
B15: 二、就业项目 | C15: =C16+C17+C18+C19+C20 -> 0 | D15: 0 | E15: 0 | F15: 0 | G15: 0 | H15: 0 | I15: 0 | J15: 0 | K15: 0 | L15: 0 | M15: 0 | N15: 0
B16: 1.务工补助
B17: 2.就业培训
B18: 3.创业
B19: 4.乡村工匠
B20: 5.公益性岗位
B21: 三、乡村建设行动 | C21: =C22+C23+C24 -> 4 | D21: 43 | E21: 43 | F21: 0 | G21: 0 | H21: 0 | I21: 4 | J21: 317 | K21: 947 | L21: 0 | M21: 18 | N21: 39
B22: 1.农村基础设施 | C22: 4 | D22: 43 | E22: 43 | F22: 0 | G22: 0 | H22: 0 | I22: 4 | J22: 317 | K22: 947 | L22: 0 | M22: 18 | N22: 39
B23: 2.人居环境整治
B24: 3.农村公共服务
B25: 四、易地搬迁后扶
B26: 五、巩固三保障成果 | C26: =C27+C28+C29+C30 -> 0 | D26: 0 | E26: 0 | F26: 0 | G26: 0 | H26: 0 | I26: 0 | J26: 0 | K26: 0 | L26: 0 | M26: 0 | N26: 0
B27: 1.住房
B28: 2.教育
B29: 3.健康
B30: 4.综合保障
B31: 六、乡村治理和精神文明建设 | C31: =C32+C33 -> 0 | D31: 0 | E31: 0 | F31: 0 | G31: 0 | H31: 0 | I31: 0 | J31: 0 | K31: 0 | L31: 0 | M31: 0 | N31: 0
B32: 1.乡村治理
B33: 2.农村精神文明建设
B34: 七、项目管理费
B35: 八、其他 | C35: =C36+C37 -> 0 | D35: 0 | E35: 0 | F35: 0 | G35: 0 | H35: 0 | I35: 0 | J35: 0 | K35: 0 | L35: 0 | M35: 0 | N35: 0
B36: 1.少数民族特色村寨建设项
B37: 2.困难群众饮用低氟茶
B38: ……

Sheet 南嘴
A1: XX县XX年度巩固拓展脱贫攻坚成果和乡村振兴项目库拟入库项目申报分类汇总表
A3: 单位（盖章）： 单位：万元、个、人
A5: 序号 | B5: 项目类型 | C5: 项目个数 | D5: 资金规模和筹资方式 | I5: 受益对象 | O5: 备注
D6: 项目预算总投资 | E6: 其中 | I6: 受益村（个） | J6: 受益户数（户） | K6: 受益人口数（人） | L6: 其中
E7: 财政衔接资金 | F7: 除财政衔接资金外的统筹整合资金 | G7: 其他财政资金 | H7: 其他筹措资金 | L7: 受益脱贫村数（个） | M7: 受益脱贫户数及防止返贫监测对象户数（户） | N7: 受益脱贫人口数及防止返贫监测对象人口数（人）
B8: 总 计 | C8: =C9+C15+C21+C25+C26+C31+C34+C35 -> 4 | D8: 31 | E8: 31 | F8: 0 | G8: 0 | H8: 0 | I8: 4 | J8: 1123 | K8: 2627 | L8: 0 | M8: 101 | N8: 203
B9: 一、产业发展 | C9: =C10+C11+C12+C14 -> 2 | D9: 20 | E9: 20 | F9: 0 | G9: 0 | H9: 0 | I9: 2 | J9: 77 | K9: 223 | L9: 0 | M9: 24 | N9: 47
B10: 1.生产项目 | C10: 2 | D10: 20 | E10: 20 | I10: 2 | J10: 77 | K10: 223 | M10: 24 | N10: 47
B11: 2.加工流通项目
B12: 3.配套设施项目
B13: 4.产业服务支撑项目
B14: 5.金融保险配套项目
B15: 二、就业项目 | C15: =C16+C17+C18+C19+C20 -> 0 | D15: 0 | E15: 0 | F15: 0 | G15: 0 | H15: 0 | I15: 0 | J15: 0 | K15: 0 | L15: 0 | M15: 0 | N15: 0
B16: 1.务工补助
B17: 2.就业培训
B18: 3.创业
B19: 4.乡村工匠
B20: 5.公益性岗位
B21: 三、乡村建设行动 | C21: =C22+C23+C24 -> 2 | D21: 11 | E21: 11 | F21: 0 | G21: 0 | H21: 0 | I21: 2 | J21: 1046 | K21: 2404 | L21: 0 | M21: 77 | N21: 156
B22: 1.农村基础设施 | C22: 2 | D22: 11 | E22: 11 | I22: 2 | J22: 1046 | K22: 2404 | M22: 77 | N22: 156
B23: 2.人居环境整治
B24: 3.农村公共服务
B25: 四、易地搬迁后扶
B26: 五、巩固三保障成果 | C26: =C27+C28+C29+C30 -> 0 | D26: 0 | E26: 0 | F26: 0 | G26: 0 | H26: 0 | I26: 0 | J26: 0 | K26: 0 | L26: 0 | M26: 0 | N26: 0
B27: 1.住房
B28: 2.教育
B29: 3.健康
B30: 4.综合保障
B31: 六、乡村治理和精神文明建设 | C31: =C32+C33 -> 0 | D31: 0 | E31: 0 | F31: 0 | G31: 0 | H31: 0 | I31: 0 | J31: 0 | K31: 0 | L31: 0 | M31: 0 | N31: 0
B32: 1.乡村治理
B33: 2.农村精神文明建设
B34: 七、项目管理费
B35: 八、其他 | C35: =C36+C37 -> 0 | D35: 0 | E35: 0 | F35: 0 | G35: 0 | H35: 0 | I35: 0 | J35: 0 | K35: 0 | L35: 0 | M35: 0 | N35: 0
B36: 1.少数民族特色村寨建设项
B37: 2.困难群众饮用低氟茶
B38: ……

Sheet 草尾
A1: XX县XX年度巩固拓展脱贫攻坚成果和乡村振兴项目库拟入库项目申报分类汇总表
A3: 单位（盖章）： 单位：万元、个、人
A5: 序号 | B5: 项目类型 | C5: 项目个数 | D5: 资金规模和筹资方式 | I5: 受益对象 | O5: 备注
D6: 项目预算总投资 | E6: 其中 | I6: 受益村（个） | J6: 受益户数（户） | K6: 受益人口数（人） | L6: 其中
E7: 财政衔接资金 | F7: 除财政衔接资金外的统筹整合资金 | G7: 其他财政资金 | H7: 其他筹措资金 | L7: 受益脱贫村数（个） | M7: 受益脱贫户数及防止返贫监测对象户数（户） | N7: 受益脱贫人口数及防止返贫监测对象人口数（人）
B8: 总 计 | C8: =C9+C15+C21+C25+C26+C31+C34+C35 -> 16 | D8: 256 | E8: 256 | F8: 0 | G8: 0 | H8: 0 | I8: 15 | J8: 3467 | K8: 13869 | L8: 13 | M8: 402 | N8: 1100
B9: 一、产业发展 | C9: =C10+C11+C12+C14 -> 1 | D9: 44 | E9: 44 | F9: 0 | G9: 0 | H9: 0 | I9: 1 | J9: 220 | K9: 1000 | L9: 0 | M9: 23 | N9: 78
B10: 1.生产项目
B11: 2.加工流通项目
B12: 3.配套设施项目 | C12: 1 | D12: 44 | E12: 44 | F12: 0 | G12: 0 | H12: 0 | I12: 1 | J12: 220 | K12: 1000 | L12: 0 | M12: 23 | N12: 78
B13: 4.产业服务支撑项目
B14: 5.金融保险配套项目
B15: 二、就业项目 | C15: =C16+C17+C18+C19+C20 -> 0 | D15: 0 | E15: 0 | F15: 0 | G15: 0 | H15: 0 | I15: 0 | J15: 0 | K15: 0 | L15: 0 | M15: 0 | N15: 0
B16: 1.务工补助
B17: 2.就业培训
B18: 3.创业
B19: 4.乡村工匠
B20: 5.公益性岗位
B21: 三、乡村建设行动 | C21: =C22+C23+C24 -> 15 | D21: 212 | E21: 212 | F21: 0 | G21: 0 | H21: 0 | I21: 14 | J21: 3247 | K21: 12869 | L21: 13 | M21: 379 | N21: 1022
B22: 1.农村基础设施 | C22: 9 | D22: 170 | E22: 170 | F22: 0 | G22: 0 | H22: 0 | I22: 8 | J22: 2191 | K22: 7929 | L22: 7 | M22: 185 | N22: 537
B23: 2.人居环境整治 | C23: 6 | D23: 42 | E23: 42 | F23: 0 | G23: 0 | H23: 0 | I23: 6 | J23: 1056 | K23: 4940 | L23: 6 | M23: 194 | N23: 485
B24: 3.农村公共服务
B25: 四、易地搬迁后扶
B26: 五、巩固三保障成果 | C26: =C27+C28+C29+C30 -> 0 | D26: 0 | E26: 0 | F26: 0 | G26: 0 | H26: 0 | I26: 0 | J26: 0 | K26: 0 | L26: 0 | M26: 0 | N26: 0
B27: 1.住房
B28: 2.教育
B29: 3.健康
B30: 4.综合保障
B31: 六、乡村治理和精神文明建设 | C31: =C32+C33 -> 0 | D31: 0 | E31: 0 | F31: 0 | G31: 0 | H31: 0 | I31: 0 | J31: 0 | K31: 0 | L31: 0 | M31: 0 | N31: 0
B32: 1.乡村治理
B33: 2.农村精神文明建设
B34: 七、项目管理费
B35: 八、其他 | C35: =C36+C37 -> 0 | D35: 0 | E35: 0 | F35: 0 | G35: 0 | H35: 0 | I35: 0 | J35: 0 | K35: 0 | L35: 0 | M35: 0 | N35: 0
B36: 1.少数民族特色村寨建设项
B37: 2.困难群众饮用低氟茶
B38: ……

Sheet 阳罗洲
A1: XX县XX年度巩固拓展脱贫攻坚成果和乡村振兴项目库拟入库项目申报分类汇总表
A3: 单位（盖章）： 单位：万元、个、人
A5: 序号 | B5: 项目类型 | C5: 项目个数 | D5: 资金规模和筹资方式 | I5: 受益对象 | O5: 备注
D6: 项目预算总投资 | E6: 其中 | I6: 受益村（个） | J6: 受益户数（户） | K6: 受益人口数（人） | L6: 其中
E7: 财政衔接资金 | F7: 除财政衔接资金外的统筹整合资金 | G7: 其他财政资金 | H7: 其他筹措资金 | L7: 受益脱贫村数（个） | M7: 受益脱贫户数及防止返贫监测对象户数（户） | N7: 受益脱贫人口数及防止返贫监测对象人口数（人）
B8: 总 计 | C8: =C9+C15+C21+C25+C26+C31+C34+C35 -> 9 | D8: 95 | E8: 95 | F8: 0 | G8: 0 | H8: 0 | I8: 9 | J8: 691 | K8: 1956 | L8: 2 | M8: 448 | N8: 1306
B9: 一、产业发展 | C9: =C10+C11+C12+C14 -> 7 | D9: 65 | E9: 65 | F9: 0 | G9: 0 | H9: 0 | I9: 7 | J9: 537 | K9: 1549 | L9: 1 | M9: 342 | N9: 1033
B10: 1.生产项目 | C10: 4 | D10: 47 | E10: 47 | F10: 0 | G10: 0 | H10: 0 | I10: 4 | J10: 311 | K10: 1000 | L10: 1 | M10: 292 | N10: 923
B11: 2.加工流通项目
B12: 3.配套设施项目 | C12: 3 | D12: 18 | E12: 18 | F12: 0 | G12: 0 | H12: 0 | I12: 3 | J12: 226 | K12: 549 | L12: 0 | M12: 50 | N12: 110
B13: 4.产业服务支撑项目
B14: 5.金融保险配套项目
B15: 二、就业项目 | C15: =C16+C17+C18+C19+C20 -> 0 | D15: 0 | E15: 0 | F15: 0 | G15: 0 | H15: 0 | I15: 0 | J15: 0 | K15: 0 | L15: 0 | M15: 0 | N15: 0
B16: 1.务工补助
B17: 2.就业培训
B18: 3.创业
B19: 4.乡村工匠
B20: 5.公益性岗位
B21: 三、乡村建设行动 | C21: =C22+C23+C24 -> 2 | D21: 30 | E21: 30 | F21: 0 | G21: 0 | H21: 0 | I21: 2 | J21: 154 | K21: 407 | L21: 1 | M21: 106 | N21: 273
B22: 1.农村基础设施 | C22: 2 | D22: 30 | E22: 30 | F22: 0 | G22: 0 | H22: 0 | I22: 2 | J22: 154 | K22: 407 | L22: 1 | M22: 106 | N22: 273
B23: 2.人居环境整治
B24: 3.农村公共服务
B25: 四、易地搬迁后扶
B26: 五、巩固三保障成果 | C26: =C27+C28+C29+C30 -> 0 | D26: 0 | E26: 0 | F26: 0 | G26: 0 | H26: 0 | I26: 0 | J26: 0 | K26: 0 | L26: 0 | M26: 0 | N26: 0
B27: 1.住房
B28: 2.教育
B29: 3.健康
B30: 4.综合保障
B31: 六、乡村治理和精神文明建设 | C31: =C32+C33 -> 0 | D31: 0 | E31: 0 | F31: 0 | G31: 0 | H31: 0 | I31: 0 | J31: 0 | K31: 0 | L31: 0 | M31: 0 | N31: 0
B32: 1.乡村治理
B33: 2.农村精神文明建设
B34: 七、项目管理费
B35: 八、其他 | C35: =C36+C37 -> 0 | D35: 0 | E35: 0 | F35: 0 | G35: 0 | H35: 0 | I35: 0 | J35: 0 | K35: 0 | L35: 0 | M35: 0 | N35: 0
B36: 1.少数民族特色村寨建设项
B37: 2.困难群众饮用低氟茶
B38: ……

Sheet 四季红
A1: XX县XX年度巩固拓展脱贫攻坚成果和乡村振兴项目库拟入库项目申报分类汇总表
A3: 单位（盖章）： 单位：万元、个、人
A5: 序号 | B5: 项目类型 | C5: 项目个数 | D5: 资金规模和筹资方式 | I5: 受益对象 | O5: 备注
D6: 项目预算总投资 | E6: 其中 | I6: 受益村（个） | J6: 受益户数（户） | K6: 受益人口数（人） | L6: 其中
E7: 财政衔接资金 | F7: 除财政衔接资金外的统筹整合资金 | G7: 其他财政资金 | H7: 其他筹措资金 | L7: 受益脱贫村数（个） | M7: 受益脱贫户数及防止返贫监测对象户数（户） | N7: 受益脱贫人口数及防止返贫监测对象人口数（人）
B8: 总 计 | C8: =C9+C15+C21+C25+C26+C31+C34+C35 -> 9 | D8: 213 | E8: 213 | F8: 0 | G8: 0 | H8: 0 | I8: 16 | J8: 629 | K8: 2933 | L8: 4 | M8: 47 | N8: 139
B9: 一、产业发展 | C9: =C10+C11+C12+C14 -> 2 | D9: 103 | E9: 103 | F9: 0 | G9: 0 | H9: 0 | I9: 9 | J9: 408 | K9: 1615 | L9: 2 | M9: 18 | N9: 50
B10: 1.生产项目
B11: 2.加工流通项目
B12: 3.配套设施项目 | C12: 2 | D12: 103 | E12: 103 | I12: 9 | J12: 408 | K12: 1615 | L12: 2 | M12: 18 | N12: 50
B13: 4.产业服务支撑项目
B14: 5.金融保险配套项目
B15: 二、就业项目 | C15: =C16+C17+C18+C19+C20 -> 0 | D15: 0 | E15: 0 | F15: 0 | G15: 0 | H15: 0 | I15: 0 | J15: 0 | K15: 0 | L15: 0 | M15: 0 | N15: 0
B16: 1.务工补助
B17: 2.就业培训
B18: 3.创业
B19: 4.乡村工匠
B20: 5.公益性岗位
B21: 三、乡村建设行动 | C21: =C22+C23+C24 -> 7 | D21: 110 | E21: 110 | F21: 0 | G21: 0 | H21: 0 | I21: 7 | J21: 221 | K21: 1318 | L21: 2 | M21: 29 | N21: 89
B22: 1.农村基础设施 | C22: 6 | D22: 104 | E22: 104 | I22: 6 | J22: 196 | K22: 1195 | L22: 2 | M22: 26 | N22: 79
B23: 2.人居环境整治 | C23: 1 | D23: 6 | E23: 6 | I23: 1 | J23: 25 | K23: 123 | L23: 0 | M23: 3 | N23: 10
B24: 3.农村公共服务
B25: 四、易地搬迁后扶
B26: 五、巩固三保障成果 | C26: =C27+C28+C29+C30 -> 0 | D26: 0 | E26: 0 | F26: 0 | G26: 0 | H26: 0 | I26: 0 | J26: 0 | K26: 0 | L26: 0 | M26: 0 | N26: 0
B27: 1.住房
B28: 2.教育
B29: 3.健康
B30: 4.综合保障
B31: 六、乡村治理和精神文明建设 | C31: =C32+C33 -> 0 | D31: 0 | E31: 0 | F31: 0 | G31: 0 | H31: 0 | I31: 0 | J31: 0 | K31: 0 | L31: 0 | M31: 0 | N31: 0
B32: 1.乡村治理
B33: 2.农村精神文明建设
B34: 七、项目管理费
B35: 八、其他 | C35: =C36+C37 -> 0 | D35: 0 | E35: 0 | F35: 0 | G35: 0 | H35: 0 | I35: 0 | J35: 0 | K35: 0 | L35: 0 | M35: 0 | N35: 0
B36: 1.少数民族特色村寨建设项
B37: 2.困难群众饮用低氟茶
B38: ……

Sheet 黄茅洲
A1: XX县XX年度巩固拓展脱贫攻坚成果和乡村振兴项目库拟入库项目申报分类汇总表
A3: 单位（盖章）： 单位：万元、个、人
A5: 序号 | B5: 项目类型 | C5: 项目个数 | D5: 资金规模和筹资方式 | I5: 受益对象 | O5: 备注
D6: 项目预算总投资 | E6: 其中 | I6: 受益村（个） | J6: 受益户数（户） | K6: 受益人口数（人） | L6: 其中
E7: 财政衔接资金 | F7: 除财政衔接资金外的统筹整合资金 | G7: 其他财政资金 | H7: 其他筹措资金 | L7: 受益脱贫村数（个） | M7: 受益脱贫户数及防止返贫监测对象户数（户） | N7: 受益脱贫人口数及防止返贫监测对象人口数（人）
B8: 总 计 | C8: =C9+C15+C21+C25+C26+C31+C34+C35 -> 11 | D8: 146 | E8: 146 | F8: 0 | G8: 0 | H8: 0 | I8: 11 | J8: 2269 | K8: 5750 | L8: 3 | M8: 244 | N8: 580
B9: 一、产业发展 | C9: =C10+C11+C12+C14 -> 2 | D9: 62 | E9: 62 | F9: 0 | G9: 0 | H9: 0 | I9: 2 | J9: 780 | K9: 1245 | L9: 1 | M9: 25 | N9: 132
B10: 1.生产项目
B11: 2.加工流通项目
B12: 3.配套设施项目 | C12: 2 | D12: 62 | E12: 62 | I12: 2 | J12: 780 | K12: 1245 | L12: 1 | M12: 25 | N12: 132
B13: 4.产业服务支撑项目
B14: 5.金融保险配套项目
B15: 二、就业项目 | C15: =C16+C17+C18+C19+C20 -> 0 | D15: 0 | E15: 0 | F15: 0 | G15: 0 | H15: 0 | I15: 0 | J15: 0 | K15: 0 | L15: 0 | M15: 0 | N15: 0
B16: 1.务工补助
B17: 2.就业培训
B18: 3.创业
B19: 4.乡村工匠
B20: 5.公益性岗位
B21: 三、乡村建设行动 | C21: =C22+C23+C24 -> 9 | D21: 84 | E21: 84 | F21: 0 | G21: 0 | H21: 0 | I21: 9 | J21: 1489 | K21: 4505 | L21: 2 | M21: 219 | N21: 448
B22: 1.农村基础设施 | C22: 9 | D22: 84 | E22: 84 | I22: 9 | J22: 1489 | K22: 4505 | L22: 2 | M22: 219 | N22: 448
B23: 2.人居环境整治
B24: 3.农村公共服务
B25: 四、易地搬迁后扶
B26: 五、巩固三保障成果 | C26: =C27+C28+C29+C30 -> 0 | D26: 0 | E26: 0 | F26: 0 | G26: 0 | H26: 0 | I26: 0 | J26: 0 | K26: 0 | L26: 0 | M26: 0 | N26: 0
B27: 1.住房
B28: 2.教育
B29: 3.健康
B30: 4.综合保障
B31: 六、乡村治理和精神文明建设 | C31: =C32+C33 -> 0 | D31: 0 | E31: 0 | F31: 0 | G31: 0 | H31: 0 | I31: 0 | J31: 0 | K31: 0 | L31: 0 | M31: 0 | N31: 0
B32: 1.乡村治理
B33: 2.农村精神文明建设
B34: 七、项目管理费
B35: 八、其他 | C35: =C36+C37 -> 0 | D35: 0 | E35: 0 | F35: 0 | G35: 0 | H35: 0 | I35: 0 | J35: 0 | K35: 0 | L35: 0 | M35: 0 | N35: 0
B36: 1.少数民族特色村寨建设项
B37: 2.困难群众饮用低氟茶
B38: ……

Sheet 南大膳
A1: XX县XX年度巩固拓展脱贫攻坚成果和乡村振兴项目库拟入库项目申报分类汇总表
A3: 单位（盖章）： 单位：万元、个、人
A5: 序号 | B5: 项目类型 | C5: 项目个数 | D5: 资金规模和筹资方式 | I5: 受益对象 | O5: 备注
D6: 项目预算总投资 | E6: 其中 | I6: 受益村（个） | J6: 受益户数（户） | K6: 受益人口数（人） | L6: 其中
E7: 财政衔接资金 | F7: 除财政衔接资金外的统筹整合资金 | G7: 其他财政资金 | H7: 其他筹措资金 | L7: 受益脱贫村数（个） | M7: 受益脱贫户数及防止返贫监测对象户数（户） | N7: 受益脱贫人口数及防止返贫监测对象人口数（人）
B8: 总 计 | C8: =C9+C15+C21+C25+C26+C31+C34+C35 -> 1 | D8: 3 | E8: 3 | F8: 0 | G8: 0 | H8: 0 | I8: 1 | J8: 30 | K8: 90 | L8: 0 | M8: 10 | N8: 30
B9: 一、产业发展 | C9: =C10+C11+C12+C14 -> 0 | D9: 0 | E9: 0 | F9: 0 | G9: 0 | H9: 0 | I9: 0 | J9: 0 | K9: 0 | L9: 0 | M9: 0 | N9: 0
B10: 1.生产项目
B11: 2.加工流通项目
B12: 3.配套设施项目
B13: 4.产业服务支撑项目
B14: 5.金融保险配套项目
B15: 二、就业项目 | C15: =C16+C17+C18+C19+C20 -> 0 | D15: 0 | E15: 0 | F15: 0 | G15: 0 | H15: 0 | I15: 0 | J15: 0 | K15: 0 | L15: 0 | M15: 0 | N15: 0
B16: 1.务工补助
B17: 2.就业培训
B18: 3.创业
B19: 4.乡村工匠
B20: 5.公益性岗位
B21: 三、乡村建设行动 | C21: =C22+C23+C24 -> 1 | D21: 3 | E21: 3 | F21: 0 | G21: 0 | H21: 0 | I21: 1 | J21: 30 | K21: 90 | L21: 0 | M21: 10 | N21: 30
B22: 1.农村基础设施 | C22: 1 | D22: 3 | E22: 3 | I22: 1 | J22: 30 | K22: 90 | M22: 10 | N22: 30
B23: 2.人居环境整治
B24: 3.农村公共服务
B25: 四、易地搬迁后扶
B26: 五、巩固三保障成果 | C26: =C27+C28+C29+C30 -> 0 | D26: 0 | E26: 0 | F26: 0 | G26: 0 | H26: 0 | I26: 0 | J26: 0 | K26: 0 | L26: 0 | M26: 0 | N26: 0
B27: 1.住房
B28: 2.教育
B29: 3.健康
B30: 4.综合保障
B31: 六、乡村治理和精神文明建设 | C31: =C32+C33 -> 0 | D31: 0 | E31: 0 | F31: 0 | G31: 0 | H31: 0 | I31: 0 | J31: 0 | K31: 0 | L31: 0 | M31: 0 | N31: 0
B32: 1.乡村治理
B33: 2.农村精神文明建设
B34: 七、项目管理费
B35: 八、其他 | C35: =C36+C37 -> 0 | D35: 0 | E35: 0 | F35: 0 | G35: 0 | H35: 0 | I35: 0 | J35: 0 | K35: 0 | L35: 0 | M35: 0 | N35: 0
B36: 1.少数民族特色村寨建设项
B37: 2.困难群众饮用低氟茶
B38: ……

Sheet 共华
A1: XX县XX年度巩固拓展脱贫攻坚成果和乡村振兴项目库拟入库项目申报分类汇总表
A3: 单位（盖章）： 单位：万元、个、人
A5: 序号 | B5: 项目类型 | C5: 项目个数 | D5: 资金规模和筹资方式 | I5: 受益对象 | O5: 备注
D6: 项目预算总投资 | E6: 其中 | I6: 受益村（个） | J6: 受益户数（户） | K6: 受益人口数（人） | L6: 其中
E7: 财政衔接资金 | F7: 除财政衔接资金外的统筹整合资金 | G7: 其他财政资金 | H7: 其他筹措资金 | L7: 受益脱贫村数（个） | M7: 受益脱贫户数及防止返贫监测对象户数（户） | N7: 受益脱贫人口数及防止返贫监测对象人口数（人）
B8: 总 计 | C8: =C9+C15+C21+C25+C26+C31+C34+C35 -> 11 | D8: 121 | E8: 121 | F8: 0 | G8: 0 | H8: 0 | I8: 11 | J8: 540 | K8: 1290 | L8: 2 | M8: 8 | N8: 23
B9: 一、产业发展 | C9: =C10+C11+C12+C14 -> 6 | D9: 68 | E9: 68 | F9: 0 | G9: 0 | H9: 0 | I9: 6 | J9: 240 | K9: 610 | L9: 2 | M9: 8 | N9: 23
B10: 1.生产项目 | C10: 2 | D10: 40 | E10: 40 | F10: 0 | G10: 0 | H10: 0 | I10: 2 | J10: 70 | K10: 150 | L10: 1 | M10: 2 | N10: 6
B11: 2.加工流通项目
B12: 3.配套设施项目 | C12: 4 | D12: 28 | E12: 28 | F12: 0 | G12: 0 | H12: 0 | I12: 4 | J12: 170 | K12: 460 | L12: 1 | M12: 6 | N12: 17
B13: 4.产业服务支撑项目
B14: 5.金融保险配套项目
B15: 二、就业项目 | C15: =C16+C17+C18+C19+C20 -> 0 | D15: 0 | E15: 0 | F15: 0 | G15: 0 | H15: 0 | I15: 0 | J15: 0 | K15: 0 | L15: 0 | M15: 0 | N15: 0
B16: 1.务工补助
B17: 2.就业培训
B18: 3.创业
B19: 4.乡村工匠
B20: 5.公益性岗位
B21: 三、乡村建设行动 | C21: =C22+C23+C24 -> 5 | D21: 53 | E21: 53 | F21: 0 | G21: 0 | H21: 0 | I21: 5 | J21: 300 | K21: 680 | L21: 0 | M21: 0 | N21: 0
B22: 1.农村基础设施 | C22: 5 | D22: 53 | E22: 53 | F22: 0 | G22: 0 | H22: 0 | I22: 5 | J22: 300 | K22: 680 | L22: 0 | M22: 0 | N22: 0
B23: 2.人居环境整治
B24: 3.农村公共服务
B25: 四、易地搬迁后扶
B26: 五、巩固三保障成果 | C26: =C27+C28+C29+C30 -> 0 | D26: 0 | E26: 0 | F26: 0 | G26: 0 | H26: 0 | I26: 0 | J26: 0 | K26: 0 | L26: 0 | M26: 0 | N26: 0
B27: 1.住房
B28: 2.教育
B29: 3.健康
B30: 4.综合保障
B31: 六、乡村治理和精神文明建设 | C31: =C32+C33 -> 0 | D31: 0 | E31: 0 | F31: 0 | G31: 0 | H31: 0 | I31: 0 | J31: 0 | K31: 0 | L31: 0 | M31: 0 | N31: 0
B32: 1.乡村治理
B33: 2.农村精神文明建设
B34: 七、项目管理费
B35: 八、其他 | C35: =C36+C37 -> 0 | D35: 0 | E35: 0 | F35: 0 | G35: 0 | H35: 0 | I35: 0 | J35: 0 | K35: 0 | L35: 0 | M35: 0 | N35: 0
B36: 1.少数民族特色村寨建设项
B37: 2.困难群众饮用低氟茶
B38: ……

Sheet 泗湖山
A1: XX县XX年度巩固拓展脱贫攻坚成果和乡村振兴项目库拟入库项目申报分类汇总表
A3: 单位（盖章）： 单位：万元、个、人
A5: 序号 | B5: 项目类型 | C5: 项目个数 | D5: 资金规模和筹资方式 | I5: 受益对象 | O5: 备注
D6: 项目预算总投资 | E6: 其中 | I6: 受益村（个） | J6: 受益户数（户） | K6: 受益人口数（人） | L6: 其中
E7: 财政衔接资金 | F7: 除财政衔接资金外的统筹整合资金 | G7: 其他财政资金 | H7: 其他筹措资金 | L7: 受益脱贫村数（个） | M7: 受益脱贫户数及防止返贫监测对象户数（户） | N7: 受益脱贫人口数及防止返贫监测对象人口数（人）
B8: 总 计 | C8: =C9+C15+C21+C25+C26+C31+C34+C35 -> 9 | D8: 249 | E8: 149 | F8: 100 | G8: 0 | H8: 0 | I8: 9 | J8: 290 | K8: 742 | L8: 7 | M8: 270 | N8: 584
B9: 一、产业发展 | C9: =C10+C11+C12+C14 -> 2 | D9: 185 | E9: 85 | F9: 100 | G9: 0 | H9: 0 | I9: 2 | J9: 141 | K9: 315 | L9: 2 | M9: 254 | N9: 545
B10: 1.生产项目 | C10: 1 | D10: 35 | E10: 35 | I10: 1 | J10: 5 | K10: 13 | L10: 1 | M10: 128 | N10: 274
B11: 2.加工流通项目 | C11: 1 | D11: 150 | E11: 50 | F11: 100 | I11: 1 | J11: 136 | K11: 302 | L11: 1 | M11: 126 | N11: 271
B12: 3.配套设施项目
B13: 4.产业服务支撑项目
B14: 5.金融保险配套项目
B15: 二、就业项目 | C15: =C16+C17+C18+C19+C20 -> 0 | D15: 0 | E15: 0 | F15: 0 | G15: 0 | H15: 0 | I15: 0 | J15: 0 | K15: 0 | L15: 0 | M15: 0 | N15: 0
B16: 1.务工补助
B17: 2.就业培训
B18: 3.创业
B19: 4.乡村工匠
B20: 5.公益性岗位
B21: 三、乡村建设行动 | C21: =C22+C23+C24 -> 7 | D21: 64 | E21: 64 | F21: 0 | G21: 0 | H21: 0 | I21: 7 | J21: 149 | K21: 427 | L21: 5 | M21: 16 | N21: 39
B22: 1.农村基础设施 | C22: 7 | D22: 64 | E22: 64 | F22: 0 | G22: 0 | H22: 0 | I22: 7 | J22: 149 | K22: 427 | L22: 5 | M22: 16 | N22: 39
B23: 2.人居环境整治
B24: 3.农村公共服务
B25: 四、易地搬迁后扶
B26: 五、巩固三保障成果 | C26: =C27+C28+C29+C30 -> 0 | D26: 0 | E26: 0 | F26: 0 | G26: 0 | H26: 0 | I26: 0 | J26: 0 | K26: 0 | L26: 0 | M26: 0 | N26: 0
B27: 1.住房
B28: 2.教育
B29: 3.健康
B30: 4.综合保障
B31: 六、乡村治理和精神文明建设 | C31: =C32+C33 -> 0 | D31: 0 | E31: 0 | F31: 0 | G31: 0 | H31: 0 | I31: 0 | J31: 0 | K31: 0 | L31: 0 | M31: 0 | N31: 0
B32: 1.乡村治理
B33: 2.农村精神文明建设
B34: 七、项目管理费
B35: 八、其他 | C35: =C36+C37 -> 0 | D35: 0 | E35: 0 | F35: 0 | G35: 0 | H35: 0 | I35: 0 | J35: 0 | K35: 0 | L35: 0 | M35: 0 | N35: 0
B36: 1.少数民族特色村寨建设项
B37: 2.困难群众饮用低氟茶
B38: ……

Sheet 茶盘洲
A1: XX县XX年度巩固拓展脱贫攻坚成果和乡村振兴项目库拟入库项目申报分类汇总表
A3: 单位（盖章）： 单位：万元、个、人
A5: 序号 | B5: 项目类型 | C5: 项目个数 | D5: 资金规模和筹资方式 | I5: 受益对象 | O5: 备注
D6: 项目预算总投资 | E6: 其中 | I6: 受益村（个） | J6: 受益户数（户） | K6: 受益人口数（人） | L6: 其中
E7: 财政衔接资金 | F7: 除财政衔接资金外的统筹整合资金 | G7: 其他财政资金 | H7: 其他筹措资金 | L7: 受益脱贫村数（个） | M7: 受益脱贫户数及防止返贫监测对象户数（户） | N7: 受益脱贫人口数及防止返贫监测对象人口数（人）
B8: 总 计 | C8: =C9+C15+C21+C25+C26+C31+C34+C35 -> 6 | D8: 61 | E8: 61 | F8: 0 | G8: 0 | H8: 0 | I8: 6 | J8: 1517 | K8: 4578 | L8: 2 | M8: 227 | N8: 510
B9: 一、产业发展 | C9: =C10+C11+C12+C14 -> 1 | D9: 25 | E9: 25 | F9: 0 | G9: 0 | H9: 0 | I9: 1 | J9: 84 | K9: 194 | L9: 1 | M9: 84 | N9: 194
B10: 1.生产项目 | C10: 1 | D10: 25 | E10: 25 | F10: 0 | G10: 0 | H10: 0 | I10: 1 | J10: 84 | K10: 194 | L10: 1 | M10: 84 | N10: 194
B11: 2.加工流通项目
B12: 3.配套设施项目
B13: 4.产业服务支撑项目
B14: 5.金融保险配套项目
B15: 二、就业项目 | C15: =C16+C17+C18+C19+C20 -> 0 | D15: 0 | E15: 0 | F15: 0 | G15: 0 | H15: 0 | I15: 0 | J15: 0 | K15: 0 | L15: 0 | M15: 0 | N15: 0
B16: 1.务工补助
B17: 2.就业培训
B18: 3.创业
B19: 4.乡村工匠
B20: 5.公益性岗位
B21: 三、乡村建设行动 | C21: =C22+C23+C24 -> 5 | D21: 36 | E21: 36 | F21: 0 | G21: 0 | H21: 0 | I21: 5 | J21: 1433 | K21: 4384 | L21: 1 | M21: 143 | N21: 316
B22: 1.农村基础设施 | C22: 5 | D22: 36 | E22: 36 | F22: 0 | G22: 0 | H22: 0 | I22: 5 | J22: 1433 | K22: 4384 | L22: 1 | M22: 143 | N22: 316
B23: 2.人居环境整治
B24: 3.农村公共服务
B25: 四、易地搬迁后扶
B26: 五、巩固三保障成果 | C26: =C27+C28+C29+C30 -> 0 | D26: 0 | E26: 0 | F26: 0 | G26: 0 | H26: 0 | I26: 0 | J26: 0 | K26: 0 | L26: 0 | M26: 0 | N26: 0
B27: 1.住房
B28: 2.教育
B29: 3.健康
B30: 4.综合保障
B31: 六、乡村治理和精神文明建设 | C31: =C32+C33 -> 0 | D31: 0 | E31: 0 | F31: 0 | G31: 0 | H31: 0 | I31: 0 | J31: 0 | K31: 0 | L31: 0 | M31: 0 | N31: 0
B32: 1.乡村治理
B33: 2.农村精神文明建设
B34: 七、项目管理费
B35: 八、其他 | C35: =C36+C37 -> 0 | D35: 0 | E35: 0 | F35: 0 | G35: 0 | H35: 0 | I35: 0 | J35: 0 | K35: 0 | L35: 0 | M35: 0 | N35: 0
B36: 1.少数民族特色村寨建设项
B37: 2.困难群众饮用低氟茶
B38: ……

Sheet 南洞庭
A1: XX县XX年度巩固拓展脱贫攻坚成果和乡村振兴项目库拟入库项目申报分类汇总表
A3: 单位（盖章）： 单位：万元、个、人
A5: 序号 | B5: 项目类型 | C5: 项目个数 | D5: 资金规模和筹资方式 | I5: 受益对象 | O5: 备注
D6: 项目预算总投资 | E6: 其中 | I6: 受益村（个） | J6: 受益户数（户） | K6: 受益人口数（人） | L6: 其中
E7: 财政衔接资金 | F7: 除财政衔接资金外的统筹整合资金 | G7: 其他财政资金 | H7: 其他筹措资金 | L7: 受益脱贫村数（个） | M7: 受益脱贫户数及防止返贫监测对象户数（户） | N7: 受益脱贫人口数及防止返贫监测对象人口数（人）
B8: 总 计 | C8: =C9+C15+C21+C25+C26+C31+C34+C35 -> 0 | D8: 0 | E8: 0 | F8: 0 | G8: 0 | H8: 0 | I8: 0 | J8: 0 | K8: 0 | L8: 0 | M8: 0 | N8: 0
B9: 一、产业发展 | C9: =C10+C11+C12+C14 -> 0 | D9: 0 | E9: 0 | F9: 0 | G9: 0 | H9: 0 | I9: 0 | J9: 0 | K9: 0 | L9: 0 | M9: 0 | N9: 0
B10: 1.生产项目
B11: 2.加工流通项目
B12: 3.配套设施项目
B13: 4.产业服务支撑项目
B14: 5.金融保险配套项目
B15: 二、就业项目 | C15: =C16+C17+C18+C19+C20 -> 0 | D15: 0 | E15: 0 | F15: 0 | G15: 0 | H15: 0 | I15: 0 | J15: 0 | K15: 0 | L15: 0 | M15: 0 | N15: 0
B16: 1.务工补助
B17: 2.就业培训
B18: 3.创业
B19: 4.乡村工匠
B20: 5.公益性岗位
B21: 三、乡村建设行动 | C21: =C22+C23+C24 -> 0 | D21: 0 | E21: 0 | F21: 0 | G21: 0 | H21: 0 | I21: 0 | J21: 0 | K21: 0 | L21: 0 | M21: 0 | N21: 0
B22: 1.农村基础设施
B23: 2.人居环境整治
B24: 3.农村公共服务
B25: 四、易地搬迁后扶
B26: 五、巩固三保障成果 | C26: =C27+C28+C29+C30 -> 0 | D26: 0 | E26: 0 | F26: 0 | G26: 0 | H26: 0 | I26: 0 | J26: 0 | K26: 0 | L26: 0 | M26: 0 | N26: 0
B27: 1.住房
B28: 2.教育
B29: 3.健康
B30: 4.综合保障
B31: 六、乡村治理和精神文明建设 | C31: =C32+C33 -> 0 | D31: 0 | E31: 0 | F31: 0 | G31: 0 | H31: 0 | I31: 0 | J31: 0 | K31: 0 | L31: 0 | M31: 0 | N31: 0
B32: 1.乡村治理
B33: 2.农村精神文明建设
B34: 七、项目管理费
B35: 八、其他 | C35: =C36+C37 -> 0 | D35: 0 | E35: 0 | F35: 0 | G35: 0 | H35: 0 | I35: 0 | J35: 0 | K35: 0 | L35: 0 | M35: 0 | N35: 0
B36: 1.少数民族特色村寨建设项
B37: 2.困难群众饮用低氟茶
B38: ……

Sheet 漉湖
A1: XX县XX年度巩固拓展脱贫攻坚成果和乡村振兴项目库拟入库项目申报分类汇总表
A3: 单位（盖章）： 单位：万元、个、人
A5: 序号 | B5: 项目类型 | C5: 项目个数 | D5: 资金规模和筹资方式 | I5: 受益对象 | O5: 备注
D6: 项目预算总投资 | E6: 其中 | I6: 受益村（个） | J6: 受益户数（户） | K6: 受益人口数（人） | L6: 其中
E7: 财政衔接资金 | F7: 除财政衔接资金外的统筹整合资金 | G7: 其他财政资金 | H7: 其他筹措资金 | L7: 受益脱贫村数（个） | M7: 受益脱贫户数及防止返贫监测对象户数（户） | N7: 受益脱贫人口数及防止返贫监测对象人口数（人）
B8: 总 计 | C8: =C9+C15+C21+C25+C26+C31+C34+C35 -> 0 | D8: 0 | E8: 0 | F8: 0 | G8: 0 | H8: 0 | I8: 0 | J8: 0 | K8: 0 | L8: 0 | M8: 0 | N8: 0
B9: 一、产业发展 | C9: =C10+C11+C12+C14 -> 0 | D9: 0 | E9: 0 | F9: 0 | G9: 0 | H9: 0 | I9: 0 | J9: 0 | K9: 0 | L9: 0 | M9: 0 | N9: 0
B10: 1.生产项目
B11: 2.加工流通项目
B12: 3.配套设施项目
B13: 4.产业服务支撑项目
B14: 5.金融保险配套项目
B15: 二、就业项目 | C15: =C16+C17+C18+C19+C20 -> 0 | D15: 0 | E15: 0 | F15: 0 | G15: 0 | H15: 0 | I15: 0 | J15: 0 | K15: 0 | L15: 0 | M15: 0 | N15: 0
B16: 1.务工补助
B17: 2.就业培训
B18: 3.创业
B19: 4.乡村工匠
B20: 5.公益性岗位
B21: 三、乡村建设行动 | C21: =C22+C23+C24 -> 0 | D21: 0 | E21: 0 | F21: 0 | G21: 0 | H21: 0 | I21: 0 | J21: 0 | K21: 0 | L21: 0 | M21: 0 | N21: 0
B22: 1.农村基础设施
B23: 2.人居环境整治
B24: 3.农村公共服务
B25: 四、易地搬迁后扶
B26: 五、巩固三保障成果 | C26: =C27+C28+C29+C30 -> 0 | D26: 0 | E26: 0 | F26: 0 | G26: 0 | H26: 0 | I26: 0 | J26: 0 | K26: 0 | L26: 0 | M26: 0 | N26: 0
B27: 1.住房
B28: 2.教育
B29: 3.健康
B30: 4.综合保障
B31: 六、乡村治理和精神文明建设 | C31: =C32+C33 -> 0 | D31: 0 | E31: 0 | F31: 0 | G31: 0 | H31: 0 | I31: 0 | J31: 0 | K31: 0 | L31: 0 | M31: 0 | N31: 0
B32: 1.乡村治理
B33: 2.农村精神文明建设
B34: 七、项目管理费
B35: 八、其他 | C35: =C36+C37 -> 0 | D35: 0 | E35: 0 | F35: 0 | G35: 0 | H35: 0 | I35: 0 | J35: 0 | K35: 0 | L35: 0 | M35: 0 | N35: 0
B36: 1.少数民族特色村寨建设项
B37: 2.困难群众饮用低氟茶
B38: ……

Sheet 行业部门
A1: XX县XX年度巩固拓展脱贫攻坚成果和乡村振兴项目库拟入库项目申报分类汇总表
A3: 单位（盖章）： 单位：万元、个、人
A5: 序号 | B5: 项目类型 | C5: 项目个数 | D5: 资金规模和筹资方式 | I5: 受益对象 | O5: 备注
D6: 项目预算总投资 | E6: 其中 | I6: 受益村（个） | J6: 受益户数（户） | K6: 受益人口数（人） | L6: 其中
E7: 财政衔接资金 | F7: 除财政衔接资金外的统筹整合资金 | G7: 其他财政资金 | H7: 其他筹措资金 | L7: 受益脱贫村数（个） | M7: 受益脱贫户数及防止返贫监测对象户数（户） | N7: 受益脱贫人口数及防止返贫监测对象人口数（人）
B8: 总 计 | C8: =C9+C15+C21+C25+C26+C31+C34+C35 -> 0 | D8: 0 | E8: 0 | F8: 0 | G8: 0 | H8: 0 | I8: 0 | J8: 0 | K8: 0 | L8: 0 | M8: 0 | N8: 0
B9: 一、产业发展 | C9: =C10+C11+C12+C14 -> 0 | D9: 0 | E9: 0 | F9: 0 | G9: 0 | H9: 0 | I9: 0 | J9: 0 | K9: 0 | L9: 0 | M9: 0 | N9: 0
B10: 1.生产项目
B11: 2.加工流通项目
B12: 3.配套设施项目
B13: 4.产业服务支撑项目
B14: 5.金融保险配套项目
B15: 二、就业项目 | C15: =C16+C17+C18+C19+C20 -> 0 | D15: 0 | E15: 0 | F15: 0 | G15: 0 | H15: 0 | I15: 0 | J15: 0 | K15: 0 | L15: 0 | M15: 0 | N15: 0
B16: 1.务工补助
B17: 2.就业培训
B18: 3.创业
B19: 4.乡村工匠
B20: 5.公益性岗位
B21: 三、乡村建设行动 | C21: =C22+C23+C24 -> 0 | D21: 0 | E21: 0 | F21: 0 | G21: 0 | H21: 0 | I21: 0 | J21: 0 | K21: 0 | L21: 0 | M21: 0 | N21: 0
B22: 1.农村基础设施
B23: 2.人居环境整治
B24: 3.农村公共服务
B25: 四、易地搬迁后扶
B26: 五、巩固三保障成果 | C26: =C27+C28+C29+C30 -> 0 | D26: 0 | E26: 0 | F26: 0 | G26: 0 | H26: 0 | I26: 0 | J26: 0 | K26: 0 | L26: 0 | M26: 0 | N26: 0
B27: 1.住房
B28: 2.教育
B29: 3.健康
B30: 4.综合保障
B31: 六、乡村治理和精神文明建设 | C31: =C32+C33 -> 0 | D31: 0 | E31: 0 | F31: 0 | G31: 0 | H31: 0 | I31: 0 | J31: 0 | K31: 0 | L31: 0 | M31: 0 | N31: 0
B32: 1.乡村治理
B33: 2.农村精神文明建设
B34: 七、项目管理费
B35: 八、其他 | C35: =C36+C37 -> 0 | D35: 0 | E35: 0 | F35: 0 | G35: 0 | H35: 0 | I35: 0 | J35: 0 | K35: 0 | L35: 0 | M35: 0 | N35: 0
B36: 1.少数民族特色村寨建设项
B37: 2.困难群众饮用低氟茶
B38: ……
